Workbook

Sheet Integración_PAA
A1: .
M66: Versión 1 - Fecha : 31-ene-2020

Sheet 00_PA2023
D2: PLAN DE ACCIÓN ANUAL 2023
B16: Articulación Planeación Estratégica Institucional (Objetivo Estratégico) | C16: Área Organizativa o Dependencia | D16: Nombre de la tarea | E16: Descripción de la tarea | F16: Responsable de ejecutar tarea | G16: Fecha Inicio | H16: Fecha Fin | I16: Fuente de Financiación (Inversión, Funcionamiento, otros) | J16: Política de Gestión y Desempeño | K16: Plan Dto. 612 asociado | L16: Componente Plan Anticorrupción y Atención al Ciudadano (Opcional)
B17: OE3. Promover formas de habitar el territorio desde las iniciativas locales y la participación comunitaria, para la adaptación al cambio climático y la prevención del riesgo, garantizando el derecho a un hábitat digno: acceso al agua, al suelo y a la vivienda; a la accesibilidad, movilidad y conectividad; y a espacios para la salud, la educación, la cultura; el encuentro y la participación comunitaria. | C17: Subgerencia de Gestion del Riesgo | D17: Terminar obras infraestructura de acueducto | E17: Terminar 02 obras infraestructura de acueducto | F17: Lider ET Gestión Insfrestructura Resiliente | G17: 2023-01-01 | H17: 2023-12-31 | I17: Inversión | J17: Participación ciudadana en la gestión pública | K17: Plan de Acción Art. 74 Ley 1474
B18: OE3. Promover formas de habitar el territorio desde las iniciativas locales y la participación comunitaria, para la adaptación al cambio climático y la prevención del riesgo, garantizando el derecho a un hábitat digno: acceso al agua, al suelo y a la vivienda; a la accesibilidad, movilidad y conectividad; y a espacios para la salud, la educación, la cultura; el encuentro y la participación comunitaria. | C18: Subgerencia de Gestion del Riesgo | D18: Entregar infraestructura de acueducto rehabilitada y/o reconstruida | E18: Entregar 05 infraestructuras de acueducto rehabilitada y/o reconstruida | F18: Lider ET Gestión Insfrestructura Resiliente | G18: 2023-01-01 | H18: 2023-12-31 | I18: Inversión | J18: Participación ciudadana en la gestión pública | K18: Plan de Acción Art. 74 Ley 1474
B19: OE3. Promover formas de habitar el territorio desde las iniciativas locales y la participación comunitaria, para la adaptación al cambio climático y la prevención del riesgo, garantizando el derecho a un hábitat digno: acceso al agua, al suelo y a la vivienda; a la accesibilidad, movilidad y conectividad; y a espacios para la salud, la educación, la cultura; el encuentro y la participación comunitaria. | C19: Subgerencia de Gestion del Riesgo | D19: Terminar obras infraestructura de alcantarillado | E19: Terminar 01 obra infraestructura de alcantarillado | F19: Lider ET Gestión Insfrestructura Resiliente | G19: 2023-01-01 | H19: 2023-12-31 | I19: Inversión | J19: Participación ciudadana en la gestión pública | K19: Plan de Acción Art. 74 Ley 1474
B20: OE3. Promover formas de habitar el territorio desde las iniciativas locales y la participación comunitaria, para la adaptación al cambio climático y la prevención del riesgo, garantizando el derecho a un hábitat digno: acceso al agua, al suelo y a la vivienda; a la accesibilidad, movilidad y conectividad; y a espacios para la salud, la educación, la cultura; el encuentro y la participación comunitaria. | C20: Subgerencia de Gestion del Riesgo | D20: Entregar infraestructura de alcantarillado rehabilitada y/o reconstruida | E20: Entregar 01 infraestructura de alcantarillado rehabilitada y/o reconstruida | F20: Lider ET Gestión Insfrestructura Resiliente | G20: 2023-01-01 | H20: 2023-12-31 | I20: Inversión | J20: Participación ciudadana en la gestión pública | K20: Plan de Acción Art. 74 Ley 1474
B21: OE3. Promover formas de habitar el territorio desde las iniciativas locales y la participación comunitaria, para la adaptación al cambio climático y la prevención del riesgo, garantizando el derecho a un hábitat digno: acceso al agua, al suelo y a la vivienda; a la accesibilidad, movilidad y conectividad; y a espacios para la salud, la educación, la cultura; el encuentro y la participación comunitaria. | C21: Subgerencia de Gestion del Riesgo | D21: Terminar Instituciones educativas adaptadas al cambio climático | E21: Terminar 09 Instituciones educativas adaptadas al cambio climático | F21: Lider ET Gestión Insfrestructura Resiliente | G21: 2023-01-01 | H21: 2023-12-31 | I21: Inversión | J21: Participación ciudadana en la gestión pública | K21: Plan de Acción Art. 74 Ley 1474
B22: OE3. Promover formas de habitar el territorio desde las iniciativas locales y la participación comunitaria, para la adaptación al cambio climático y la prevención del riesgo, garantizando el derecho a un hábitat digno: acceso al agua, al suelo y a la vivienda; a la accesibilidad, movilidad y conectividad; y a espacios para la salud, la educación, la cultura; el encuentro y la participación comunitaria. | C22: Subgerencia de Gestion del Riesgo | D22: Entregar Instituciones educativas adaptadas al cambio climático | E22: Entregar 11 Instituciones educativas adaptadas al cambio climático | F22: Lider ET Gestión Insfrestructura Resiliente | G22: 2023-01-01 | H22: 2023-12-31 | I22: Inversión | J22: Participación ciudadana en la gestión pública | K22: Plan de Acción Art. 74 Ley 1474
B23: OE1. Adoptar e implementar estrategias para la recuperación y fortalecimiento socioeconómico del territorio, de manera que estas, le permitan a la población una adaptación sostenible al cambio climático. | C23: Subgerencia de Regiones | D23: Terminar Acompañamiento Social Proyectos Reactivar urbanos o mixtos | E23: Terminar 01 Acompañamiento Social Proyectos Reactivar urbanos o mixtos | F23: Líder ET Reactivación Económica | G23: 2023-01-01 | H23: 2023-12-31 | I23: Inversión | J23: Participación ciudadana en la gestión pública | K23: Plan de Acción Art. 74 Ley 1474
B24: OE1. Adoptar e implementar estrategias para la recuperación y fortalecimiento socioeconómico del territorio, de manera que estas, le permitan a la población una adaptación sostenible al cambio climático. | C24: Subgerencia de Regiones | D24: Entregar Acompañamiento Social Proyectos Reactivar urbanos o mixtos | E24: Entregar 01 Acompañamiento Social Proyectos Reactivar urbanos o mixtos | F24: Líder ET Reactivación Económica | G24: 2023-01-01 | H24: 2023-12-31 | I24: Inversión | J24: Participación ciudadana en la gestión pública | K24: Plan de Acción Art. 74 Ley 1474
B25: OE1. Adoptar e implementar estrategias para la recuperación y fortalecimiento socioeconómico del territorio, de manera que estas, le permitan a la población una adaptación sostenible al cambio climático. | C25: Subgerencia de Regiones | D25: Proyectos Regionales de Reactivación Económica (Yati Bodega) Terminar | E25: Terminar 01 Proyecto Regional de Reactivación Económica (Yati Bodega) | F25: Líder ET Reactivación Económica | G25: 2023-01-01 | H25: 2023-12-31 | I25: Inversión | J25: Participación ciudadana en la gestión pública | K25: Plan de Acción Art. 74 Ley 1474
B26: OE1. Adoptar e implementar estrategias para la recuperación y fortalecimiento socioeconómico del territorio, de manera que estas, le permitan a la población una adaptación sostenible al cambio climático. | C26: Subgerencia de Regiones | D26: Proyectos Regionales de Reactivación Económica (Yati Bodega) Entregar | E26: Entregar 01 Proyecto Regional de Reactivación Económica (Yati Bodega) | F26: Líder ET Reactivación Económica | G26: 2023-01-01 | H26: 2023-12-31 | I26: Inversión | J26: Participación ciudadana en la gestión pública | K26: Plan de Acción Art. 74 Ley 1474
B27: OE3. Promover formas de habitar el territorio desde las iniciativas locales y la participación comunitaria, para la adaptación al cambio climático y la prevención del riesgo, garantizando el derecho a un hábitat digno: acceso al agua, al suelo y a la vivienda; a la accesibilidad, movilidad y conectividad; y a espacios para la salud, la educación, la cultura; el encuentro y la participación comunitaria. | C27: Subgerencia de Gestion del Riesgo | D27: Terminar obras de infraestructura de IPS | E27: Terminar 02 obras de infraestructura de IPS | F27: Líder ET Reactivación Económica | G27: 2023-01-01 | H27: 2023-12-31 | I27: Inversión | J27: Participación ciudadana en la gestión pública | K27: Plan de Acción Art. 74 Ley 1474
B28: OE3. Promover formas de habitar el territorio desde las iniciativas locales y la participación comunitaria, para la adaptación al cambio climático y la prevención del riesgo, garantizando el derecho a un hábitat digno: acceso al agua, al suelo y a la vivienda; a la accesibilidad, movilidad y conectividad; y a espacios para la salud, la educación, la cultura; el encuentro y la participación comunitaria. | C28: Subgerencia de Gestion del Riesgo | D28: Entregar a las ESE, obras de infraestructura y dotación de IPS | E28: Entregar a las ESE, 02 obras de infraestructura y dotación de IPS | F28: Líder ET Reactivación Económica | G28: 2023-01-01 | H28: 2023-12-31 | I28: Inversión | J28: Participación ciudadana en la gestión pública | K28: Plan de Acción Art. 74 Ley 1474
B29: OE3. Promover formas de habitar el territorio desde las iniciativas locales y la participación comunitaria, para la adaptación al cambio climático y la prevención del riesgo, garantizando el derecho a un hábitat digno: acceso al agua, al suelo y a la vivienda; a la accesibilidad, movilidad y conectividad; y a espacios para la salud, la educación, la cultura; el encuentro y la participación comunitaria. | C29: Subgerencia de Gestion del Riesgo | D29: Entregar obras infraestructura de Sitios Críticos | E29: Entregar 02 obras infraestructura de Sitios Críticos | F29: Líder ET Reactivación Económica | G29: 2023-01-01 | H29: 2023-12-31 | I29: Inversión | J29: Participación ciudadana en la gestión pública | K29: Plan de Acción Art. 74 Ley 1474
B30: OE3. Promover formas de habitar el territorio desde las iniciativas locales y la participación comunitaria, para la adaptación al cambio climático y la prevención del riesgo, garantizando el derecho a un hábitat digno: acceso al agua, al suelo y a la vivienda; a la accesibilidad, movilidad y conectividad; y a espacios para la salud, la educación, la cultura; el encuentro y la participación comunitaria. | C30: Subgerencia de Gestion del Riesgo | D30: Terminar soluciones de vivienda | E30: Terminar 2334 soluciones de vivienda | F30: Lider ET Gestión Habitat | G30: 2023-01-01 | H30: 2023-12-31 | I30: Inversión | J30: Participación ciudadana en la gestión pública | K30: Plan de Acción Art. 74 Ley 1474
B31: OE3. Promover formas de habitar el territorio desde las iniciativas locales y la participación comunitaria, para la adaptación al cambio climático y la prevención del riesgo, garantizando el derecho a un hábitat digno: acceso al agua, al suelo y a la vivienda; a la accesibilidad, movilidad y conectividad; y a espacios para la salud, la educación, la cultura; el encuentro y la participación comunitaria. | C31: Subgerencia de Gestion del Riesgo | D31: Entregar a cada beneficiario la solución de vivienda terminada | E31: Entregar a cada beneficiario la solución de vivienda terminada | F31: Lider ET Gestión Habitat | G31: 2023-01-01 | H31: 2023-12-31 | I31: Inversión | J31: Participación ciudadana en la gestión pública | K31: Plan de Acción Art. 74 Ley 1474
B32: OE3. Promover formas de habitar el territorio desde las iniciativas locales y la participación comunitaria, para la adaptación al cambio climático y la prevención del riesgo, garantizando el derecho a un hábitat digno: acceso al agua, al suelo y a la vivienda; a la accesibilidad, movilidad y conectividad; y a espacios para la salud, la educación, la cultura; el encuentro y la participación comunitaria. | C32: Subgerencia de Gestion del Riesgo | D32: Viviendas municipio gramalote, terminadas | E32: Terminar 128 Viviendas municipio gramalote | F32: Lider ET Gestión Insfrestructura Resiliente | G32: 2023-01-01 | H32: 2023-12-31 | J32: Participación ciudadana en la gestión pública | K32: Plan de Acción Art. 74 Ley 1474
B33: OE3. Promover formas de habitar el territorio desde las iniciativas locales y la participación comunitaria, para la adaptación al cambio climático y la prevención del riesgo, garantizando el derecho a un hábitat digno: acceso al agua, al suelo y a la vivienda; a la accesibilidad, movilidad y conectividad; y a espacios para la salud, la educación, la cultura; el encuentro y la participación comunitaria. | C33: Subgerencia de Gestion del Riesgo | D33: Viviendas municipio gramalote, entregadas | E33: Entregar 135 Viviendas municipio gramalote | F33: Lider ET Gestión Insfrestructura Resiliente | G33: 2023-01-01 | H33: 2023-12-31 | J33: Participación ciudadana en la gestión pública | K33: Plan de Acción Art. 74 Ley 1474
B34: OE3. Promover formas de habitar el territorio desde las iniciativas locales y la participación comunitaria, para la adaptación al cambio climático y la prevención del riesgo, garantizando el derecho a un hábitat digno: acceso al agua, al suelo y a la vivienda; a la accesibilidad, movilidad y conectividad; y a espacios para la salud, la educación, la cultura; el encuentro y la participación comunitaria. | C34: Subgerencia de Gestion del Riesgo | D34: Km de Jarillón, terminado | E34: 2,1 Km de Jarillón, terminado | F34: Lider ET Gestión Insfrestructura Resiliente | G34: 2023-01-01 | H34: 2023-12-31 | J34: Participación ciudadana en la gestión pública | K34: Plan de Acción Art. 74 Ley 1474
B35: OE3. Promover formas de habitar el territorio desde las iniciativas locales y la participación comunitaria, para la adaptación al cambio climático y la prevención del riesgo, garantizando el derecho a un hábitat digno: acceso al agua, al suelo y a la vivienda; a la accesibilidad, movilidad y conectividad; y a espacios para la salud, la educación, la cultura; el encuentro y la participación comunitaria. | C35: Subgerencia de Gestion del Riesgo | D35: Km de Jarillón, entregado | E35: 7,8 Km de Jarillón, entregado | F35: Lider ET Gestión Insfrestructura Resiliente | G35: 2023-01-01 | H35: 2023-12-31 | J35: Participación ciudadana en la gestión pública | K35: Plan de Acción Art. 74 Ley 1474
B36: OE3. Promover formas de habitar el territorio desde las iniciativas locales y la participación comunitaria, para la adaptación al cambio climático y la prevención del riesgo, garantizando el derecho a un hábitat digno: acceso al agua, al suelo y a la vivienda; a la accesibilidad, movilidad y conectividad; y a espacios para la salud, la educación, la cultura; el encuentro y la participación comunitaria. | C36: Subgerencia de Gestion del Riesgo | D36: Soluciones de vivienda, contratadas (PJC) | E36: 36 Soluciones de vivienda, contratadas (PJC) | F36: Lider ET Gestión Insfrestructura Resiliente | G36: 2023-01-01 | H36: 2023-12-31 | J36: Participación ciudadana en la gestión pública | K36: Plan de Acción Art. 74 Ley 1474
B37: OE3. Promover formas de habitar el territorio desde las iniciativas locales y la participación comunitaria, para la adaptación al cambio climático y la prevención del riesgo, garantizando el derecho a un hábitat digno: acceso al agua, al suelo y a la vivienda; a la accesibilidad, movilidad y conectividad; y a espacios para la salud, la educación, la cultura; el encuentro y la participación comunitaria. | C37: Subgerencia de Gestion del Riesgo | D37: Soluciones de vivienda, terminadas (PJC) | E37: 80 Soluciones de vivienda, terminadas (PJC) | F37: Lider ET Gestión Insfrestructura Resiliente | G37: 2023-01-01 | H37: 2023-12-31 | J37: Participación ciudadana en la gestión pública | K37: Plan de Acción Art. 74 Ley 1474
B38: OE3. Promover formas de habitar el territorio desde las iniciativas locales y la participación comunitaria, para la adaptación al cambio climático y la prevención del riesgo, garantizando el derecho a un hábitat digno: acceso al agua, al suelo y a la vivienda; a la accesibilidad, movilidad y conectividad; y a espacios para la salud, la educación, la cultura; el encuentro y la participación comunitaria. | C38: Subgerencia de Gestion del Riesgo | D38: Soluciones de vivienda, entregadas (PJC) | E38: 163 Soluciones de vivienda, entregadas (PJC) | F38: Lider ET Gestión Insfrestructura Resiliente | G38: 2023-01-01 | H38: 2023-12-31 | J38: Participación ciudadana en la gestión pública | K38: Plan de Acción Art. 74 Ley 1474
B39: OE3. Promover formas de habitar el territorio desde las iniciativas locales y la participación comunitaria, para la adaptación al cambio climático y la prevención del riesgo, garantizando el derecho a un hábitat digno: acceso al agua, al suelo y a la vivienda; a la accesibilidad, movilidad y conectividad; y a espacios para la salud, la educación, la cultura; el encuentro y la participación comunitaria. | C39: Subgerencia de Gestion del Riesgo | D39: Obras infraestructura estratégica, terminadas (PTAR, PTAP) | E39: 02 Obras infraestructura estratégica, terminadas (PTAR, PTAP) | F39: Lider ET Gestión Insfrestructura Resiliente | G39: 2023-01-01 | H39: 2023-12-31 | J39: Participación ciudadana en la gestión pública | K39: Plan de Acción Art. 74 Ley 1474
B40: OE2. Identificar, estructurar y ejecutar proyectos de restauración ecológica y ordenamiento territorial para el aprovechamiento de la diversificación productiva fomentando la economía circular, la conservación de las fuentes hídricas y el manejo adecuado de residuos sólidos que contribuyan a la adaptación al cambio climático en los territorios. | C40: Subgerencia de Proyectos | D40: Acompañamiento Social Proyectos Reactivar urbanos o mixtos contratado | E40: 01 Acompañamiento Social Proyectos Reactivar urbanos o mixtos contratado | F40: Líder ET Proyecto Integral La Mojana | G40: 2023-01-01 | H40: 2023-12-31 | J40: Participación ciudadana en la gestión pública | K40: Plan de Acción Art. 74 Ley 1474
B41: OE3. Promover formas de habitar el territorio desde las iniciativas locales y la participación comunitaria, para la adaptación al cambio climático y la prevención del riesgo, garantizando el derecho a un hábitat digno: acceso al agua, al suelo y a la vivienda; a la accesibilidad, movilidad y conectividad; y a espacios para la salud, la educación, la cultura; el encuentro y la participación comunitaria. | C41: Subgerencia de Gestion del Riesgo | D41: Entregar obras de mitigación del riesgo del proyecto Río Fonce | E41: Entregar 03 obras de mitigación del riesgo del proyecto Río Fonce | F41: Lider ET Gestión Insfrestructura Resiliente | G41: 2023-01-01 | H41: 2023-12-31 | J41: Participación ciudadana en la gestión pública | K41: Plan de Acción Art. 74 Ley 1474

Sheet 01_PAAC

Sheet 01a_Riesgos
D2: PLAN ANTICORRUPCIÓN Y DE ATENCIÓN AL CIUDADANO Componente: Riesgos de Corrupción
B6: Fuentes de Diagnóstico | E6: Diagnóstico | F6: Componente Plan Anticorrupción y Atención al Ciudadano | G6: Categoría/Proyecto/Fase | H6: Cronograma | O6: Recursos | R6: Política de Gestión y Desempeño
B7: Fuentes | C7: Información utilizada | D7: Oportunidad de Mejora | H7: Nombre de la tarea | I7: Descripción | J7: Responsable de aprobar tarea | K7: Responsable de ejecutar tarea | L7: Fecha Inicio | M7: Fecha Fin | N7: Proceso | O7: Área Organizativa o Dependencia Responsable | P7: Fuente de Financiación (Inversión, Funcionamiento, otros) | Q7: Tecnológicos
F8: Gestión del Riesgo de Corrupción - Mapa de Riesgos de Corrupción | G8: Política de Administración de Riesgos | H8: Revisar y actualizar (si aplica) la Política de Riesgo de acuerdo con los experiencias de evaluación y seguimiento de los riesgos institucionales | I8: Política revisada | J8: Oficina de Planeación | K8: Oficina de Planeación y Comité de Control Interno | L8: 2023-01-01 | M8: 2023-06-30 | N8: 1,1 PlaneaciónEstratégica | O8: Oficina Asesora de Planeación | R8: 1. planeación Institucional
G9: Construcción del Mapa de Riesgos de Corrupción | H9: Divulgar la metodología de gestión del riesgo y el mapa de riesgos de corrupción al interior de la Entidad, mediante el desarrollo de espacios de capacitación y otros mecanismos de socialización. | I9: Socialización de la metodología Riesgos de Corrupción | J9: Oficina de Planeación | K9: Oficina de Planeación | L9: 2023-01-01 | M9: 2023-06-30 | N9: 1,1 PlaneaciónEstratégica
H10: Revisar y actualizar (si aplica) los eventos de riesgos de corrupción de la Entidad registrados en el Mapa de Riesgos de Corrupción, de manera conjunta con las dependencias responsables, conforme con la metodología institucional | I10: Mapa de riesgos de corrupción revisado, ajustado | J10: Oficina de Planeación | K10: Líderes de proceso con riesgos materializados | L10: 2023-01-01 | M10: 2023-12-31 | N10: 1,1 PlaneaciónEstratégica
G11: Consulta y divulgación | H11: Divulgar el mapa riesgos de corrupción al interior de la Entidad | I11: Socialización Mapa de Riesgos de Corrupción | J11: Oficina de Planeación | K11: Oficina de Planeación | L11: 2023-01-01 | M11: 2023-06-30 | N11: 1,1 PlaneaciónEstratégica
H12: Publicar el mapa de riesgos de corrupción | I12: Mapa de riesgos de corrupción publicado | J12: Oficina de Planeación | K12: Oficina de Planeación | L12: 2023-01-01 | M12: 2023-06-30 | N12: 1,1 PlaneaciónEstratégica
G13: Monitoreo y revisión | H13: Implementar las acciones propuestas en el plan de manejo para gestionar los riesgos de corrupción | I13: Un reporte de avance en acciones para mitigar el riesgo de corrupción | J13: Oficina de Planeación | K13: Líderes de proceso con riesgos materializados | L13: 2023-01-01 | M13: 2023-06-30 | N13: 1,1 PlaneaciónEstratégica
H14: Realizar revisión periódica del mapa de riesgo de corrupción y aplicar los ajustes a que haya lugar en caso de posibles cambios que se generen respecto a la eficacia de los controles, cambios en el contexto externo e interno y/o riesgos emergentes; verificando el cumplimiento de los planes manejo. | I14: Tres monitoreos a los riesgos de corrupción y reportes en la herramienta dispuesta por la OAP | J14: Oficina de Planeación | K14: Líderes de proceso con riesgos materializados | L14: 2023-01-01 | M14: 2023-12-31 | N14: 1,1 PlaneaciónEstratégica
G15: Seguimiento | H15: Realizar seguimiento al mapa de riesgo de corrupción, verificar el funcionamiento y la efectividad de los controles, así como el cumplimiento de las acciones. | I15: Informe de seguimiento a riesgos de corrupción con los siguientes cortes: 30 de abril, 31 agosto, 31 de diciembre | J15: Oficina de Planeación | K15: Oficina de Planeación | L15: 2023-01-01 | M15: Los 10 primeros días hábiles de may, sep 2023 | N15: 1,1 PlaneaciónEstratégica
H16: Publicar el seguimiento al mapa de riesgos de corrupción | I16: Seguimiento al mapa de riesgos de corrupción publicado en página web | J16: Oficina de Planeación | K16: Oficina de Planeación | L16: 2023-01-01 | M16: Los 10 primeros días hábiles de may, sep 2023 | N16: 1,1 PlaneaciónEstratégica

Sheet 01b_Trámites
B2: PLAN ANTICORRUPCIÓN Y DE ATENCIÓN AL CIUDADANO Componente: Racionalización de Trámites
B6: Fuentes de Diagnóstico | E6: Diagnóstico | F6: Componente Plan Anticorrupción y Atención al Ciudadano | G6: Categoría/Proyecto/Fase | H6: Cronograma | O6: Recursos | R6: Política de Gestión y Desempeño
B7: Fuentes | C7: Información utilizada | D7: Oportunidad de Mejora | H7: Nombre de la tarea | I7: Descripción | J7: Responsable de aprobar tarea | K7: Responsable de ejecutar tarea | L7: Fecha Inicio | M7: Fecha Fin | N7: Proceso | O7: Área Organizativa o Dependencia Responsable | P7: Fuente de Financiación (Inversión, Funcionamiento, otros) | Q7: Tecnológicos
F8: NO APLICA

Sheet 01c_Rendición_de_Cuentas
B2: PLAN ANTICORRUPCIÓN Y DE ATENCIÓN AL CIUDADANO Componente: Rendición de Cuentas
B6: Fuentes de Diagnóstico | E6: Diagnóstico | F6: Componente Plan Anticorrupción y Atención al Ciudadano | G6: Categoría/Proyecto/Fase | H6: Cronograma | O6: Recursos | R6: Política de Gestión y Desempeño
B7: Fuentes | C7: Información utilizada | D7: Oportunidad de Mejora | H7: Nombre de la tarea | I7: Descripción | J7: Responsable de aprobar tarea | K7: Responsable de ejecutar tarea | L7: Fecha Inicio | M7: Fecha Fin | N7: Proceso | O7: Área Organizativa o Dependencia Responsable | P7: Fuente de Financiación (Inversión, Funcionamiento, otros) | Q7: Tecnológicos
F8: Subcomponente 1 | G8: Informar avances y resultados de la gestión con calidad y en lenguaje comprensible | H8: Ejecutar la Estrategia de Rendición de Cuentas 365 de la Entidad | I8: Realizar la Audiencia Pública de Rendición de Cuentas correspondiente a la (vigencia oct 2021 - sep 2022) | J8: Líder ET Comunicación / Gerencia | K8: GERENCIA_Comunicaciones | L8: 2023-03-01 | M8: 2023-04-30 | N8: 1,2 Planeación de las comunicaciones | O8: Equipo de trabajo de comunicaciones | R8: Participación ciudadana en la gestión pública
I9: Publicación del informe final de Rendición de Cuentas (vigencia oct. 2022 - sep 2023) en el que se identifican, a través de una encuesta, las necesidades de información de la comunidad , usuarios y grupos de interés. | J9: Líder ET Comunicación / Gerencia | K9: GERENCIA_Comunicaciones | L9: 2023-11-01 | M9: 2023-12-31 | N9: 1,2 Planeación de las comunicaciones | O9: Equipo de trabajo de comunicaciones
I10: Divulgar por diversos canales de comunicación (página web, redes sociales y free press) píldoras informativas del informe de rendición de cuentas para todos los grupos de valor. | J10: Líder ET Comunicación / Gerencia | K10: GERENCIA_Comunicaciones | L10: 2023-11-01 | M10: 2023-12-31 | N10: 1,2 Planeación de las comunicaciones | O10: Equipo de trabajo de comunicaciones
I11: Realizar la Audiencia Pública de Rendición de Cuentas correspondiente a la (vigencia oct. 2022 - sep 2023) | J11: Líder ET Comunicación / Gerencia | K11: GERENCIA_Comunicaciones | L11: 2023-11-01 | M11: 2023-12-31 | N11: 1,2 Planeación de las comunicaciones | O11: Equipo de trabajo de comunicaciones

Sheet 01d_Atención_al_Ciudadano
D2: PLAN ANTICORRUPCIÓN Y DE ATENCIÓN AL CIUDADANO Componente: Mecanismos para mejorar la Atención al Ciudadano
B6: Fuentes de Diagnóstico | E6: Diagnóstico | F6: Componente Plan Anticorrupción y Atención al Ciudadano | G6: Categoría/Proyecto/Fase | H6: Cronograma | O6: Recursos | R6: Política de Gestión y Desempeño
B7: Fuentes | C7: Información utilizada | D7: Oportunidad de Mejora | H7: Nombre de la tarea | I7: Descripción | J7: Responsable de aprobar tarea | K7: Responsable de ejecutar tarea | L7: Fecha Inicio | M7: Fecha Fin | N7: Proceso | O7: Área Organizativa o Dependencia Responsable | P7: Fuente de Financiación (Inversión, Funcionamiento, otros) | Q7: Tecnológicos
F8: Planeación estratégica del servicio al ciudadano | G8: Gestión de relacionamiento con los ciudadanos | H8: Publicar 20 piezas comunicativas durante la vigencia 2023 que difundan la cultura de servicio al ciudadano | I8: Con el apoyo del ET de Comunicaciones se realizará al interior de la entidad la socialización de las piezas comunicativas orientadas a fortalecer la cultura de servicio (Guía de lenguaje claro, carta de trato digno, atención diferencial e incluyente y el protocolo de servicio al ciudadano, entre otros temas de servicio al ciudadano. | J8: Secretaria General | K8: Técnico Relacionamiento con el Ciudadano | L8: 2023-01-02 | M8: 2023-12-31 | N8: Gestión de Atención al Ciudadano | R8: Participación ciudadana en la gestión pública
H9: Seguimiento y control a la ejecución de actividades programadas por los gestores de las políticas que inciden con el relacionamiento con el ciudadano en el Fondo Adaptación | I9: Teniendo en cuenta que el Liderazgo de la Política de Relacionamiento con el Ciudadano esta a cargo de la Secretaría General, se realizará el seguimiento y control de las actividades programadas en Plan de Acción y Plan Anticorrupción y de Atención al Ciudadano por los gestores de las políticas: participación ciudadana, servicio al ciudadano, transparencia, racionalización de trámites y estrategia de rendición de cuentas) con el fin de facilitar el proceso de integración a la cultura organizacional del modelo de relacionamiento con la ciudadanía . | J9: Secretaria General | K9: Secretaria General | L9: 2023-01-02 | M9: 2023-12-31 | N9: Gestión de Atención al Ciudadano
H10: Actualizar el Protocolo de Servicio al Ciudadano | I10: De acuerdo a la misionalidad de la entidad actualizar el protocolo de servicio al ciudadano, y gestionar la publicación en los diferentes canales de comunicación, en el marco de las políticas que inciden con el relacionamiento y que a su vez contribuya: al cumplimiento de la misión institucional, a prestar un mejor servicio a la comunidad, al desempeño eficaz del cargo y al desarrollo integral de la relación con los usuarios del Fondo Adaptación | J10: Secretaria General | K10: Técnico Relacionamiento con el Ciudadano | L10: 2023-01-02 | M10: 2023-12-31 | N10: Gestión de Atención al Ciudadano
F11: Canales de atención | G11: Gestión de relacionamiento con los ciudadanos | H11: Fortalecimiento de los canales de atención de la entidad | I11: Socializar con el apoyo del ET de Comunicaciones los canales de atención habilitados por el Fondo a través de los distintos medios de comunicación interna y externa y Medir la usabilidad de los canales de atención en los informes trimestales de gestión de PQRSFD y | J11: Secretaria General | K11: Técnico Relacionamiento con el Ciudadano | L11: 2023-01-02 | M11: 2023-12-31 | N11: Gestión de Atención al Ciudadano
H12: Fortalecimiento de los canales de atención de la entidad | I12: Presentar la medición del tiempo promedio que espera el ciudadano hasta el momento que inicia la interacción a través del Chat Institucional, este indicador se incluye en los informes trimestales de gestión de PQRSFD. | J12: Secretaria General | K12: Técnico Relacionamiento con el Ciudadano | L12: 2023-01-02 | M12: 2023-12-31 | N12: Gestión de Atención al Ciudadano
H13: Fortalecimiento de los canales de atención de la entidad | I13: Presentar la medición del tiempo promedio que tarda la atención a los ciudadanos que interactúan a través del Chat Institucional, este indicador se incluye en los informes trimestales de gestión de PQRSFD. | J13: Secretaria General | K13: Técnico Relacionamiento con el Ciudadano | L13: 2023-01-02 | M13: 2023-12-31 | N13: Gestión de Atención al Ciudadano
H14: Fortalecer los canales de Atención al Ciudadano a través de la participación en las Ferias Acércate en región organizadas por el DAFP durante la vigencia 2023 con el objetivo de entregar a los ciudadanos información general y de los proyectos intervenidos por la entidad en el territorio | I14: Participar en las Ferias Acércate organizadas por el DAFP para la vigencia 2023 en región (La ejecución de la actividad depende de la programación de ferias del DAFP, se estima la participación del FA en 2 ferias en 2023) | J14: Secretaria General | K14: Técnico Relacionamiento con el Ciudadano | L14: 2023-01-02 | M14: 2023-12-31 | N14: Gestión de Atención al Ciudadano
F15: Normativo y procedimental | G15: Gestión de relacionamiento con los ciudadanos | H15: Publicar trimestralmente el informe de la gestión de PQRSFD recibidas por el Fondo Adaptación | I15: Generar y publicar trimestralmente los informes de seguimiento y control de las PQRSFD recibidas y radicadas en el Sistema de Gestión Documental de la Entidad con el fin de mostrar la gestión a los Derechos de Petición. | J15: Secretaria General | K15: Técnico Relacionamiento con el Ciudadano | L15: 2023-01-02 | M15: 2023-12-31 | N15: Gestión de Atención al Ciudadano
F16: Evaluación de gestión y medición de la percepción ciudadana | G16: Gestión de relacionamiento con los ciudadanos | H16: Medir la percepción y satisfacción de los ciudadanos al momento del contacto a través de los canales virtuales habilitados por el Fondo Adaptación | I16: Publicar en página web los informes semestrales de los resultados de la percepción y satisfacción de los ciudadanos al momento del contacto de los canales virtuales habilitados por el Fondo Adaptación | J16: Secretaria General | K16: Técnico Relacionamiento con el Ciudadano | L16: 2023-01-02 | M16: 2023-12-31 | N16: Gestión de Atención al Ciudadano
F17: Talento humano | G17: Gestión de relacionamiento con los ciudadanos | H17: Incluir en el Plan Institucional de Capacitación del Fondo temáticas de Relacionamiento con el ciudadano | I17: Relacionar las actividades para fortaler los conocimientos y competencias de los colaboradores del Fondo Adaptación en tematicas que inciden con el relacionamiento con el Ciudadano | J17: Secretaria General | K17: Técnico Gestión Talento Humano | L17: 2023-01-02 | M17: 2023-12-31 | N17: Gestión de Talento Humano

Sheet 01e_Transparencia
D2: PLAN ANTICORRUPCIÓN Y DE ATENCIÓN AL CIUDADANO Componente: Mecanismos para la Transparencia y Acceso a la Información
B6: Fuentes de Diagnóstico | E6: Diagnóstico | F6: Componente Plan Anticorrupción y Atención al Ciudadano | G6: Categoría/Proyecto/Fase | H6: Cronograma | O6: Recursos | R6: Política de Gestión y Desempeño
B7: Fuentes | C7: Información utilizada | D7: Oportunidad de Mejora | H7: Nombre de la tarea | I7: Descripción | J7: Responsable de aprobar tarea | K7: Responsable de ejecutar tarea | L7: Fecha Inicio | M7: Fecha Fin | N7: Proceso | O7: Área Organizativa o Dependencia Responsable | P7: Fuente de Financiación (Inversión, Funcionamiento, otros) | Q7: Tecnológicos
F8: Transparencia y Acceso de la Información | G8: Lineamientos de Transparencia Pasiva | H8: A través de la publicación en página web se realizará informes de Seguimiento en la vigencia de manera trimestral a a las PQRSFD recibidas y radicadas en el Sistema de Gestión Documental en el Fondo y así evidenciar la gestión a los Derecho de Petición | I8: Publicar la gestión de las PQRSFD recibidas por el Fondo en términos de oportunidad, calidad y en un lenguaje claro con el fin que el contenido sea sencillo, de fácil comprensión y de esta manera garantizar respuestas dentro del término de ley, precisas, claras y útiles para los ciudadanos | J8: Secretaría General | K8: Equipo Atención al Ciudadano | L8: 2023-01-01 | M8: 2023-12-31 | N8: 9,3 Gestión de atención al ciudadano | R8: Servicio al ciudadano
G9: Monitoreo del Acceso a la Información Pública | H9: Medir la percepción y satisfacción de la comunidad respecto al Fondo Adaptación, teniendo en cuenta la atención de PQRSFD | I9: Informe de Satisfacción Ciudadana | J9: Secretaría General | K9: Equipo Atención al Ciudadano | L9: 2023-01-01 | M9: 2023-12-31 | N9: 9,3 Gestión de atención al ciudadano

Sheet 01f_Otras
D2: PLAN ANTICORRUPCIÓN Y DE ATENCIÓN AL CIUDADANO Componente: Iniciativas Adicionales
B6: Fuentes de Diagnóstico | E6: Diagnóstico | F6: Componente Plan Anticorrupción y Atención al Ciudadano | G6: Categoría/Proyecto/Fase | H6: Cronograma | O6: Recursos | R6: Política de Gestión y Desempeño
B7: Fuentes | C7: Información utilizada | D7: Oportunidad de Mejora | H7: Nombre de la tarea | I7: Descripción | J7: Responsable de aprobar tarea | K7: Responsable de ejecutar tarea | L7: Fecha Inicio | M7: Fecha Fin | N7: Proceso | O7: Área Organizativa o Dependencia Responsable | P7: Fuente de Financiación (Inversión, Funcionamiento, otros) | Q7: Tecnológicos
F8: Código de Integridad | G8: Gestión de relacionamiento con los ciudadanos | H8: Divulgar y fortalecer la cultura organizacional en torno al Código de Integridad | I8: Realizar actividades durante la vigencia 2023 para servidores públicos y contratistas para difundir el código de integridad y establecer y suscribir compromiso por parte de los servidores públicos y contratistas que ingresan por primera vez a la entidad | J8: Secretaria General | K8: Profesional II Gestión Talento Humano | L8: 2023-01-02 | M8: 2023-12-31 | N8: Gestión de Talento Humano | R8: Talento humano
F9: Conflicto de interés | G9: Gestión de relacionamiento con los ciudadanos | H9: Capacitar y sensibilizar sobre temas de conflicto de interés | I9: Realizar actividades y capacitaciones durante la vigencia 2023 para servidores públicos y contratistas sobre gestión del conocimiento de conflicto de interés | J9: Secretaria General | K9: Profesional II Gestión Talento Humano | L9: 2023-01-02 | M9: 2023-12-31 | N9: Gestión de Talento Humano
F10: Componente 3: Rendición de cuentas Componente 6 (Iniciativas Adicionales): Participación Ciudadana | H10: Acompañar 90 espacios de participación ciudadana en el marco de la Estrategia de Auditorías Visibles | I10: La estrategia de participación ciudadana Auditorias Visibles en el Fondo define espacios con grupos de valor e interés que pueden ser acompañados por profesionales sociales del Fondo. | J10: Subgerencia de regiones | K10: SE.T GESTIÓN SOCIAL PARA LA ADAPTACIÓN AL CAMBIO CLIMATICO | L10: 2023-01-01 | M10: 2023-12-31 | N10: Gestión integral de programas y proyectos | R10: Participación ciudadana en la gestión pública
F11: Componente 3: Rendición de cuentas Componente 6 (Iniciativas Adicionales): Participación Ciudadana | H11: Realizar 4 Comités Regionales de Seguimiento – CORES en el marco de la estrategia de articulación regional | I11: Comités Regionales de Seguimiento - CORES espacio de rendición de cuentas con gobernaciones y/o alcaldias. | J11: Subgerencia de regiones | K11: SE.T GESTIÓN SOCIAL Y ARTICULACIÓN REGIONAL | L11: 2023-01-01 | M11: 2023-12-31 | N11: Gestión integral de programas y proyectos
F12: Componente 3: Rendición de cuentas Componente 6 (Iniciativas Adicionales): Participación Ciudadana | H12: Fortalecer a través de 90 capacitaciones a los equipos locales de seguimiento – ELS- comunidad y profesionales sociales en campo | I12: Los Equipos Locales de Seguimiento y las comunidades reciben capacitaciones en habilidades y otros conomientos. Así como a los profesionales sociales de contraitstas e interventorias | J12: Subgerencia de regiones | K12: SE.T GESTIÓN SOCIAL Y ARTICULACIÓN REGIONAL | L12: 2023-01-01 | M12: 2023-12-31 | N12: Gestión integral de programas y proyectos

Sheet 02_PETI
E2: PLAN ESTRATÉGICO DE TECNOLOGÍAS DE LA INFORMACIÓN Y LAS COMUNICACIONES -PETI
B18: Articulación Planeación Estratégica Institucional (Objetivo Estratégico) | C18: Área Organizativa o Dependencia | D18: Nombre de la tarea | E18: Descripción de la tarea | F18: Responsable de ejecutar tarea | G18: Fecha Inicio | H18: Fecha Fin | I18: Fuente de Financiación (Inversión, Funcionamiento, otros) | J18: Política de Gestión y Desempeño | K18: Componente Plan Anticorrupción y Atención al Ciudadano (Opcional)
B19: Fortalecer las capacidades institucionales de gestión y gobierno de TI | C19: E.T. Tecnologias de la Informaciòn | E19: Estructurar la informaciòn geográfica y alfanumérica de los procesos de gestiòn de riesgos para la toma de decisiones | F19: Líder ET Tecnologías de la Información | G19: 2023-01-01 | H19: 2023-12-31 | I19: Inversiòn
B20: Fortalecer las capacidades institucionales de gestión y gobierno de TI | C20: E.T. Tecnologias de la Informaciòn | E20: Dotar al fondo de los recursos tecnológicos necesarios para el procesamiento y análisis de información | F20: Líder ET Tecnologías de la Información | G20: 2023-01-01 | H20: 2023-12-31 | I20: Inversiòn
B21: Fortalecer las capacidades institucionales de gestión y gobierno de TI | C21: E.T. Tecnologias de la Informaciòn | E21: Actualizar el modelo de datos de la entidad articulado con la arquitectura de los sistemas de informaicón | F21: Líder ET Tecnologías de la Información | G21: 2023-01-01 | H21: 2023-12-31 | I21: Inversiòn
B22: Fortalecer las capacidades institucionales de gestión y gobierno de TI | C22: E.T. Tecnologias de la Informaciòn | E22: Definir y/o actualizar las politicas de gestión de TI de acuerdo al marco de referencia de TI | F22: Líder ET Tecnologías de la Información | G22: 2023-01-01 | H22: 2023-12-31 | I22: Inversiòn
B23: Fortalecer las capacidades institucionales de gestión y gobierno de TI | C23: E.T. Tecnologias de la Informaciòn | E23: Elaborar la estrategia y poltìca de uso y apropiación de TI e iniciar su implementación | F23: Líder ET Tecnologías de la Información | G23: 2023-01-01 | H23: 2023-12-31 | I23: Inversiòn
B24: Fortalecer las capacidades institucionales de gestión y gobierno de TI | C24: E.T. Tecnologias de la Informaciòn | E24: Dar soporte y mantenimiento a los sistemas de información de la entidad | F24: Líder ET Tecnologías de la Información | G24: 2023-01-01 | H24: 2023-12-31 | I24: Inversiòn

Sheet 02a_Seguridad_de_Información
D2: PLAN DE SEGURIDAD Y PRIVACIDAD DE LA INFORMACIÓN
B15: Articulación Planeación Estratégica Institucional (Objetivo Estratégico) | C15: Área Organizativa o Dependencia | D15: Nombre de la tarea | E15: Descripción de la tarea | F15: Responsable de ejecutar tarea | G15: Fecha Inicio | H15: Fecha Fin | I15: Fuente de Financiación (Inversión, Funcionamiento, otros) | J15: Política de Gestión y Desempeño | K15: Componente Plan Anticorrupción y Atención al Ciudadano (Opcional)
B16: Fortalecer las capacidades institucionales de gestión y gobierno de TI | C16: E.T. Tecnologias de la Informaciòn | D16: Actualización Política de seguridad y privacidad de la información | E16: Actualización Política de seguridad y privacidad de la información | F16: Líder ET Tecnologías de la Información | G16: 2023-01-01 | H16: 2023-12-31 | I16: Funcionamiento
B17: Fortalecer las capacidades institucionales de gestión y gobierno de TI | C17: E.T. Tecnologias de la Informaciòn | D17: Sensibilización de funcionarios y contratistas sobre seguridad y privacidad de la información | E17: Difundir la política de seguridad y privacidad de la información del fondo adaptación mediante campañas institucionales | F17: Líder ET Tecnologías de la Información | G17: 2023-01-01 | H17: 2023-12-31 | I17: Funcionamiento
B18: Fortalecer las capacidades institucionales de gestión y gobierno de TI | C18: E.T. Tecnologias de la Informaciòn | D18: Autodiagnóstico MSPI | E18: Actualizar el autodiagnóstico de MSPI de Mintic y desarrollar comparativo y difusión de resultados | F18: Líder ET Tecnologías de la Información | G18: 2023-01-01 | H18: 2023-12-31 | I18: Funcionamiento
B19: Fortalecer las capacidades institucionales de gestión y gobierno de TI | C19: E.T. Tecnologias de la Informaciòn | D19: Catalogo de activos de información | E19: Actualizar y consolidar el catlogo de activos de información y socializarlo | F19: Líder ET Tecnologías de la Información | G19: 2023-01-01 | H19: 2023-12-31 | I19: Funcionamiento
B20: Fortalecer las capacidades institucionales de gestión y gobierno de TI | C20: E.T. Tecnologias de la Informaciòn | D20: Riesgos seguridad de la informaicón | E20: Actualización de riesgos sobre activos de información, desde el enfoque de Seguridad Informática frente a ciberamenazas | F20: Líder ET Tecnologías de la Información | G20: 2023-01-01 | H20: 2023-12-31 | I20: Funcionamiento
B21: Fortalecer las capacidades institucionales de gestión y gobierno de TI | C21: E.T. Tecnologias de la Informaciòn | D21: Gobierno de seguridad y privacidad de información | E21: Definición de roles y responsabilidades y definición y gestión del plan de sensibilización y capacitación | F21: Líder ET Tecnologías de la Información | G21: 2023-01-01 | H21: 2023-12-31 | I21: Funcionamiento
B22: Fortalecer las capacidades institucionales de gestión y gobierno de TI | C22: E.T. Tecnologias de la Informaciòn | D22: Documentación SGSI | E22: Actualización de la documentación del SGSI | F22: Líder ET Tecnologías de la Información | G22: 2023-01-01 | H22: 2023-12-31 | I22: Funcionamiento

Sheet 02b_Tratamiento_de_riesgos
D2: PLAN DE TRATAMIENTO DE RIESGOS DE SEGURIDAD Y PRIVACIDAD DE LA INFORMACIÓN
B18: RIESGOS | E18: CONTROLES
B19: Total Riesgos | C19: Total de Riesgos en zona Aceptable | D19: Total de Riesgos en zona No Aceptable | E19: Tipo Tecnológico | F19: Tipo Estratégico | G19: Tipo Documental o Procedimental
B20: 6 | C20: 0 | E20: Perdida de información

Sheet 03_PETH

Sheet 03a_Plan_de_Vacantes
C2: PLAN ANUAL DE VACANTES
B15: Articulación Planeación Estratégica Institucional (Objetivo Estratégico) | C15: Área Organizativa o Dependencia | D15: Nombre de la tarea | E15: Descripción de la tarea | F15: Responsable de ejecutar tarea | G15: Fecha Inicio | H15: Fecha Fin | I15: Fuente de Financiación (Inversión, Funcionamiento, otros) | J15: Política de Gestión y Desempeño | K15: Componente Plan Anticorrupción y Atención al Ciudadano (Opcional)
B16: No aplica por no contar con empleos de carrera administrativa

Sheet 03b_Plan_de_Previsión
E2: PLAN ANUAL DE PREVISIÓN DE RECURSOS HUMANOS
B15: Articulación Planeación Estratégica Institucional (Objetivo Estratégico) | C15: Área Organizativa o Dependencia | D15: Nombre de la tarea | E15: Descripción de la tarea | F15: Responsable de ejecutar tarea | G15: Fecha Inicio | H15: Fecha Fin | I15: Fuente de Financiación (Inversión, Funcionamiento, otros) | J15: Política de Gestión y Desempeño | K15: Componente Plan Anticorrupción y Atención al Ciudadano (Opcional)
B16: OBJETIVO # 6: Modernizar y fortalecer el funcionamiento del Fondo Adaptación con visión de largo plazo. | C16: E.T. Gestión Talento Humano | D16: Formular Plan anual de previsión de recursos humanos | E16: Identificar los recursos requeridos para la vigencia respecto al talento humano con cubrimiento de la planta completa | F16: Profesional I - Nómina TH | G16: Enero | H16: Enero | I16: No aplica | J16: Talento Humano
B17: OBJETIVO # 6: Modernizar y fortalecer el funcionamiento del Fondo Adaptación con visión de largo plazo. | C17: E.T. Gestión Talento Humano | D17: Solicitar PAC mensual con el fin de dar cumplimiento al Plan de Previsión | E17: Ejecutar los recursos requeridos en 2023 respecto al talento humano con cubrimiento de la planta completa y conforme con el PAC mensual solicitado | F17: Profesional I - Nómina TH | G17: Enero | H17: Diciembre | I17: No aplica | J17: Talento Humano

Sheet 03c_PIC
E2: PLAN INSTITUCIONAL DE CAPACITACIÓN - PIC
B17: Articulación Planeación Estratégica Institucional (Objetivo Estratégico) | C17: Área Organizativa o Dependencia | D17: Nombre de la tarea | E17: Descripción de la tarea | F17: Responsable de ejecutar tarea | G17: Fecha Inicio | H17: Fecha Fin | I17: Fuente de Financiación (Inversión, Funcionamiento, otros) | J17: Política de Gestión y Desempeño | K17: Componente Plan Anticorrupción y Atención al Ciudadano (Opcional)
B18: OBJETIVO # 6: Modernizar y fortalecer el funcionamiento del Fondo Adaptación con visión de largo plazo. | C18: E.T. Gestión Talento Humano | D18: Encuentros transversales de Función Pública | E18: Participar en los encuentros transversales convocados por Función Pública dirigido a los colaboradores de los equipos transversales de la Entidad. | F18: Técnico sección TH | G18: Enero | H18: Diciembre | I18: No aplica | J18: Talento Humano | K18: No aplica
B19: OBJETIVO # 6: Modernizar y fortalecer el funcionamiento del Fondo Adaptación con visión de largo plazo. | C19: E.T. Gestión Talento Humano | D19: Capacitaciones en diferentes temas del Sistema Integrado de Información Financiera SIIF-Nación | E19: Participar en las capacitaciones convocadas por el Ministerio de Hacienda dirigido a los colaboradores que manejan el SIIF Nación | F19: Técnico sección TH | G19: Enero | H19: Diciembre | I19: No aplica | J19: Talento Humano | K19: No aplica
B20: OBJETIVO # 6: Modernizar y fortalecer el funcionamiento del Fondo Adaptación con visión de largo plazo. | C20: E.T. Gestión Talento Humano | D20: Reinducción SST | E20: Realizar reinducción a los colaboradores en temas de SST | F20: Líder del SG-SST y Técnico sección TH | G20: Enero | H20: Febrero | I20: No aplica | J20: Talento Humano | K20: No aplica
B21: OBJETIVO # 6: Modernizar y fortalecer el funcionamiento del Fondo Adaptación con visión de largo plazo. | C21: E.T. Gestión Talento Humano | D21: Inducción a Gerentes Públicos | E21: Solicitar la realización del curso en un plazo de 4 meses por parte de nuevos directivos vinculados recientemente. | F21: Técnico sección TH | G21: Enero | H21: Diciembre | I21: No aplica | J21: Talento Humano | K21: No aplica
B22: OBJETIVO # 6: Modernizar y fortalecer el funcionamiento del Fondo Adaptación con visión de largo plazo. | C22: E.T. Gestión Talento Humano | D22: Curso virtual de integridad, transparencia y lucha contra la corrupción. | E22: Solicitar la realización del curso virtual por parte de nuevos colaboradores de la Entidad. | F22: Técnico sección TH | G22: Enero | H22: Diciembre | I22: No aplica | J22: Talento Humano | K22: No aplica
B23: OBJETIVO # 6: Modernizar y fortalecer el funcionamiento del Fondo Adaptación con visión de largo plazo. | C23: E.T. Gestión Talento Humano | D23: Programa de bienvenida a colaboradores nuevos | E23: Realizar el programa debienvenida con los temas de indcción a los nuevos colaboradores de la Entidad. | F23: Técnico sección TH | G23: Enero | H23: Diciembre | I23: No aplica | J23: Talento Humano | K23: No aplica
B24: OBJETIVO # 6: Modernizar y fortalecer el funcionamiento del Fondo Adaptación con visión de largo plazo. | C24: E.T. Gestión Talento Humano | D24: Manejo del sistema de gestión documental electrónico y de archivo - SGDEA, y Datafondo | E24: Desarrollar actividad dirigido a los colaboradores de la Entidad. | F24: Técnico sección TH | G24: Enero | H24: Marzo | I24: No aplica | J24: Talento Humano | K24: No aplica
B25: OBJETIVO # 6: Modernizar y fortalecer el funcionamiento del Fondo Adaptación con visión de largo plazo. | C25: E.T. Gestión Talento Humano | D25: Herramientas ofimáticas (word, excel, power point) | E25: Desarrollar actividad previa inscripción de las personas interesadas | F25: Técnico sección TH | G25: Febrero | H25: Diciembre | I25: No aplica | J25: Talento Humano | K25: No aplica
B26: OBJETIVO # 6: Modernizar y fortalecer el funcionamiento del Fondo Adaptación con visión de largo plazo. | C26: E.T. Gestión Talento Humano | D26: Programa de Bilingüismo | E26: Desarrollar actividad previa inscripción de las personas interesadas | F26: Técnico sección TH | G26: Febrero | H26: Diciembre | I26: No aplica | J26: Talento Humano | K26: No aplica
B27: OBJETIVO # 6: Modernizar y fortalecer el funcionamiento del Fondo Adaptación con visión de largo plazo. | C27: E.T. Gestión Talento Humano | D27: Inspecciones de seguridad | E27: Realizar capacitación en Inspecciones de seguridad a los miembros del COPASST | F27: Líder del SG-SST y Asesor III TH | G27: Febrero | H27: Febrero | I27: No aplica | J27: Talento Humano | K27: No aplica
B28: OBJETIVO # 6: Modernizar y fortalecer el funcionamiento del Fondo Adaptación con visión de largo plazo. | C28: E.T. Gestión Talento Humano | D28: Herramientas institucionales de gestión de proyectos | E28: Desarrollar actividad dirigido a los supervisores y apoyos a la supervisión de la Entidad. | F28: Técnico sección TH | G28: Febrero | H28: Febrero
B29: OBJETIVO # 6: Modernizar y fortalecer el funcionamiento del Fondo Adaptación con visión de largo plazo. | C29: E.T. Gestión Talento Humano | D29: Capacitación Secop II para supervisores | E29: Desarrollar actividad dirigido a los supervisores y apoyos a la supervisión de la Entidad. | F29: Técnico sección TH | G29: Febrero | H29: Febrero
B30: OBJETIVO # 6: Modernizar y fortalecer el funcionamiento del Fondo Adaptación con visión de largo plazo. | C30: E.T. Gestión Talento Humano | D30: Capacitación Secop II para contratistas | E30: Desarrollar actividad dirigido a los contratistas de la Entidad. | F30: Técnico sección TH | G30: Febrero | H30: Febrero
B31: OBJETIVO # 6: Modernizar y fortalecer el funcionamiento del Fondo Adaptación con visión de largo plazo. | C31: E.T. Gestión Talento Humano | D31: Procedimiento administrativo sancionatorio | E31: Desarrollar actividad dirigido a los supervisores y apoyos a la supervisión de la Entidad. | F31: Técnico sección TH | G31: Febrero | H31: Febrero
B32: OBJETIVO # 6: Modernizar y fortalecer el funcionamiento del Fondo Adaptación con visión de largo plazo. | C32: E.T. Gestión Talento Humano | D32: Taller de liquidaciones contrato estatal | E32: Desarrollar actividad dirigido a los supervisores y apoyos a la supervisión de la Entidad. | F32: Técnico sección TH | G32: Febrero | H32: Febrero
B33: OBJETIVO # 6: Modernizar y fortalecer el funcionamiento del Fondo Adaptación con visión de largo plazo. | C33: E.T. Gestión Talento Humano | D33: Lenguaje Claro del DNP u otro relacionado | E33: Solicitar la realización del curso a los colaboradores de la Entidad | F33: Técnico sección TH | G33: Marzo | H33: Marzo | I33: No aplica | J33: Talento Humano | K33: No aplica
B34: OBJETIVO # 6: Modernizar y fortalecer el funcionamiento del Fondo Adaptación con visión de largo plazo. | C34: E.T. Gestión Talento Humano | D34: Primeros auxilios | E34: Realizar capacitación en Primeros auxilios a la Brigada de Emergencias de la Entidad. | F34: Líder del SG-SST y Asesor III TH | G34: Marzo | H34: Marzo | I34: No aplica | J34: Talento Humano | K34: No aplica
B35: OBJETIVO # 6: Modernizar y fortalecer el funcionamiento del Fondo Adaptación con visión de largo plazo. | C35: E.T. Gestión Talento Humano | D35: Impactos psicológicos y emocionales de la violencia (género, minorías, otros) | E35: Gestionar una capacitación y sensibilización sobre los impactos psicológicos y emocionales de la violencia (género, minorías, otros) | F35: Técnico sección TH | G35: Marzo | H35: Marzo | I35: No aplica | J35: Talento Humano | K35: No aplica
B36: OBJETIVO # 6: Modernizar y fortalecer el funcionamiento del Fondo Adaptación con visión de largo plazo. | C36: E.T. Gestión Talento Humano | D36: Actualización y entrada en vigencia de la Ley 2094 de 2021 | E36: Desarrollar actividad dirigido a colaboradores de la Entidad. | F36: Técnico sección TH | G36: Marzo | H36: Marzo | I36: No aplica | J36: Talento Humano | K36: No aplica
B37: OBJETIVO # 6: Modernizar y fortalecer el funcionamiento del Fondo Adaptación con visión de largo plazo. | C37: E.T. Gestión Talento Humano | D37: Procedimientos de gestión etapa precontractual y contractual | E37: Desarrollar actividad dirigido a colaboradores de la Entidad que lo requieran | F37: Técnico sección TH | G37: Marzo | H37: Marzo | I37: No aplica | J37: Talento Humano | K37: No aplica
B38: OBJETIVO # 6: Modernizar y fortalecer el funcionamiento del Fondo Adaptación con visión de largo plazo. | C38: E.T. Gestión Talento Humano | D38: Gestión de Riesgo de Desastres y Adaptación al Cambio Climático | E38: Desarrollar actividad dirigido a los supervisores y apoyos a la supervisión de la Entidad. | F38: Técnico sección TH | G38: Marzo | H38: Marzo
B39: OBJETIVO # 6: Modernizar y fortalecer el funcionamiento del Fondo Adaptación con visión de largo plazo. | C39: E.T. Gestión Talento Humano | D39: Manejo del sistema de gestión documental electrónico y de archivo - SGDEA, y Datafondo | E39: Desarrollar actividad dirigido a los colaboradores de la Entidad. | F39: Técnico sección TH | G39: Abril | H39: Junio | I39: No aplica | J39: Talento Humano | K39: No aplica
B40: OBJETIVO # 6: Modernizar y fortalecer el funcionamiento del Fondo Adaptación con visión de largo plazo. | C40: E.T. Gestión Talento Humano | D40: Protocolo de atención de situaciones de Acoso laboral y/o sexual | E40: Realizar capacitación en Acoso laboral a los miembros del Comité de Convivencia laboral | F40: Líder del SG-SST y Asesor III TH | G40: Abril | H40: Abril | I40: No aplica | J40: Talento Humano | K40: No aplica
B41: OBJETIVO # 6: Modernizar y fortalecer el funcionamiento del Fondo Adaptación con visión de largo plazo. | C41: E.T. Gestión Talento Humano | D41: Competencias humanas y productivas | E41: Desarrollar actividad dirigido a los colaboradores de la Entidad. | F41: Técnico sección TH | G41: Abril | H41: Mayo | I41: No aplica | J41: Talento Humano | K41: No aplica
B42: OBJETIVO # 6: Modernizar y fortalecer el funcionamiento del Fondo Adaptación con visión de largo plazo. | C42: E.T. Gestión Talento Humano | D42: Responsabilidad del servidor público en materia disciplinaria | E42: Desarrollar actividad dirigido a los servidores públicos de la Entidad. | F42: Técnico sección TH | G42: Abril | H42: Abril
B43: OBJETIVO # 6: Modernizar y fortalecer el funcionamiento del Fondo Adaptación con visión de largo plazo. | C43: E.T. Gestión Talento Humano | D43: Gestión de procesos | E43: Desarrollar actividad dirigido a los colaboradores públicos de la Entidad. | F43: Técnico sección TH | G43: Abril | H43: Abril
B44: OBJETIVO # 6: Modernizar y fortalecer el funcionamiento del Fondo Adaptación con visión de largo plazo. | C44: E.T. Gestión Talento Humano | D44: Habitos y Estilos de vida saludables | E44: Realizar capacitación en Habitos y Estilos de vida saludables dirigida a todos los colaboradores de la Entidad | F44: Líder del SG-SST y Asesor III TH | G44: Mayo | H44: Mayo | I44: No aplica | J44: Talento Humano | K44: No aplica
B45: OBJETIVO # 6: Modernizar y fortalecer el funcionamiento del Fondo Adaptación con visión de largo plazo. | C45: E.T. Gestión Talento Humano | D45: Gestión del presupuesto, recursos de Inversión y funcionamiento | E45: Desarrollar actividad dirigido a colaboradores de la Entidad que lo requieran | F45: Técnico sección TH | G45: Mayo | H45: Mayo | I45: No aplica | J45: Talento Humano | K45: No aplica
B46: OBJETIVO # 6: Modernizar y fortalecer el funcionamiento del Fondo Adaptación con visión de largo plazo. | C46: E.T. Gestión Talento Humano | D46: Reinducción general a todos los colaboradores | E46: Desarrollar la reinducción dirigido a todos colaboradores de la Entidad. | F46: Técnico sección TH | G46: Junio | H46: Junio | I46: No aplica | J46: Talento Humano | K46: No aplica
B47: OBJETIVO # 6: Modernizar y fortalecer el funcionamiento del Fondo Adaptación con visión de largo plazo. | C47: E.T. Gestión Talento Humano | D47: Prevención y control del fuego | E47: Realizar capacitación en Prevención y control del fuego a la Brigada de Emergencias de la Entidad. | F47: Líder del SG-SST y Asesor III TH | G47: Junio | H47: Junio | I47: No aplica | J47: Talento Humano | K47: No aplica
B48: OBJETIVO # 6: Modernizar y fortalecer el funcionamiento del Fondo Adaptación con visión de largo plazo. | C48: E.T. Gestión Talento Humano | D48: Higiene postural | E48: Realizar capacitación en Higiene postural dirigida a todos los colaboradores de la Entidad | F48: Líder del SG-SST y Asesor III TH | G48: Junio | H48: Noviembre | I48: No aplica | J48: Talento Humano | K48: No aplica
B49: OBJETIVO # 6: Modernizar y fortalecer el funcionamiento del Fondo Adaptación con visión de largo plazo. | C49: E.T. Gestión Talento Humano | D49: Técnicas y métodos de investigación e Innovación | E49: Desarrollar actividad dirigido a los colaboradores de la Entidad que lo requieran | F49: Técnico sección TH | G49: Agosto | H49: Agosto | I49: No aplica | J49: Talento Humano | K49: No aplica
B50: OBJETIVO # 6: Modernizar y fortalecer el funcionamiento del Fondo Adaptación con visión de largo plazo. | C50: E.T. Gestión Talento Humano | D50: La ética del servidor público | E50: Desarrollar actividad dirigido a los servidores públicos de la Entidad. | F50: Técnico sección TH | G50: Junio | H50: Junio
B51: OBJETIVO # 6: Modernizar y fortalecer el funcionamiento del Fondo Adaptación con visión de largo plazo. | C51: E.T. Gestión Talento Humano | D51: Gestión de la política de riesgos | E51: Desarrollar actividad dirigido a los supervisores y apoyos a la supervisión de la Entidad. | F51: Técnico sección TH | G51: Junio | H51: Junio
B52: OBJETIVO # 6: Modernizar y fortalecer el funcionamiento del Fondo Adaptación con visión de largo plazo. | C52: E.T. Gestión Talento Humano | D52: Manejo del sistema de gestión documental electrónico y de archivo - SGDEA, y Datafondo | E52: Desarrollar actividad dirigido a los colaboradores de la Entidad. | F52: Técnico sección TH | G52: Julio | H52: Septiembre | I52: No aplica | J52: Talento Humano | K52: No aplica
B53: OBJETIVO # 6: Modernizar y fortalecer el funcionamiento del Fondo Adaptación con visión de largo plazo. | C53: E.T. Gestión Talento Humano | D53: Apropiación y uso de las herramientas TIC de apoyo Suit Google (Drive, Meet, Gmail) | E53: Desarrollar actividad dirigido a colaboradores de la Entidad por equipos de trabajo. | F53: Técnico sección TH | G53: Julio | H53: Julio | I53: No aplica | J53: Talento Humano | K53: No aplica
B54: OBJETIVO # 6: Modernizar y fortalecer el funcionamiento del Fondo Adaptación con visión de largo plazo. | C54: E.T. Gestión Talento Humano | D54: Apropiación y uso de las herramientas TIC de apoyo Sistema de información SIFA | E54: Desarrollar actividad dirigido a colaboradores de la Entidad que lo requieran | F54: Técnico sección TH | G54: Julio | H54: Julio | I54: No aplica | J54: Talento Humano | K54: No aplica
B55: OBJETIVO # 6: Modernizar y fortalecer el funcionamiento del Fondo Adaptación con visión de largo plazo. | C55: E.T. Gestión Talento Humano | D55: Prevención y manejo del Estrés laboral | E55: Realizar capacitación en Prevención y manejo del Estrés laboral dirigida a todos los colaboradores de la Entidad | F55: Líder del SG-SST y Asesor III TH | G55: Julio | H55: Julio | I55: No aplica | J55: Talento Humano | K55: No aplica
B56: OBJETIVO # 6: Modernizar y fortalecer el funcionamiento del Fondo Adaptación con visión de largo plazo. | C56: E.T. Gestión Talento Humano | D56: Gestión Integral de Proyectos | E56: Desarrollar actividad dirigido a colaboradores de la Entidad que lo requieran | F56: Técnico sección TH | G56: Julio | H56: Julio | I56: No aplica | J56: Talento Humano | K56: No aplica
B57: OBJETIVO # 6: Modernizar y fortalecer el funcionamiento del Fondo Adaptación con visión de largo plazo. | C57: E.T. Gestión Talento Humano | D57: Estructuración y seguimiento de proyectos | E57: Desarrollar actividad dirigido a los supervisores y apoyos a la supervisión de la Entidad. | F57: Técnico sección TH | G57: Julio | H57: Septiembre
B58: OBJETIVO # 6: Modernizar y fortalecer el funcionamiento del Fondo Adaptación con visión de largo plazo. | C58: E.T. Gestión Talento Humano | D58: Proyecto de aprendizaje por equipos | E58: Desarrollar actividad de acuerdo con la identificación de oportunidades de mejora manifestado por lideres de ET. | F58: Técnico sección TH | G58: Agosto | H58: Diciembre | I58: No aplica | J58: Talento Humano | K58: No aplica
B59: OBJETIVO # 6: Modernizar y fortalecer el funcionamiento del Fondo Adaptación con visión de largo plazo. | C59: E.T. Gestión Talento Humano | D59: Taller de desvinculación asistida y charla de beneficios de la agencia de empleo y emprendimiento de la CCF | E59: Desarrollar actividad dirigido a prepensionados y colaboradores interesados. | F59: Técnico sección TH | G59: Agosto | H59: Agosto | I59: No aplica | J59: Talento Humano | K59: No aplica
B60: OBJETIVO # 6: Modernizar y fortalecer el funcionamiento del Fondo Adaptación con visión de largo plazo. | C60: E.T. Gestión Talento Humano | D60: Investigación de incidentes y accidentes de trabajo | E60: Realizar capacitación en Investigación de incidentes y accidentes de trabajo a los miembros del COPASST | F60: Líder del SG-SST y Asesor III TH | G60: Agosto | H60: Agosto | I60: No aplica | J60: Talento Humano | K60: No aplica
B61: OBJETIVO # 6: Modernizar y fortalecer el funcionamiento del Fondo Adaptación con visión de largo plazo. | C61: E.T. Gestión Talento Humano | D61: Política de Relacionamiento con el ciudadano | E61: Gestionar una capacitación de relacionamiento con el ciudadano dirigido a colaboradores de la Entidad. | F61: Técnico sección TH | G61: Septiembre | H61: Septiembre | I61: No aplica | J61: Talento Humano | K61: No aplica
B62: OBJETIVO # 6: Modernizar y fortalecer el funcionamiento del Fondo Adaptación con visión de largo plazo. | C62: E.T. Gestión Talento Humano | D62: Evacuación y rescate | E62: Realizar capacitación en Evacuación y rescate a la Brigada de Emergencias de la Entidad. | F62: Líder del SG-SST y Asesor III TH | G62: Septiembre | H62: Septiembre | I62: No aplica | J62: Talento Humano | K62: No aplica
B63: OBJETIVO # 6: Modernizar y fortalecer el funcionamiento del Fondo Adaptación con visión de largo plazo. | C63: E.T. Gestión Talento Humano | D63: Manejo del sistema de gestión documental electrónico y de archivo - SGDEA, y Datafondo | E63: Desarrollar actividad dirigido a los colaboradores de la Entidad. | F63: Técnico sección TH | G63: Octubre | H63: Diciembre | I63: No aplica | J63: Talento Humano | K63: No aplica
B64: OBJETIVO # 6: Modernizar y fortalecer el funcionamiento del Fondo Adaptación con visión de largo plazo. | C64: E.T. Gestión Talento Humano | D64: Mapa de aseguramiento y lineas de defensa | E64: Desarrollar actividad dirigido a colaboradores de la Entidad. | F64: Técnico sección TH | G64: Octubre | H64: Octubre | I64: No aplica | J64: Talento Humano | K64: No aplica
B65: OBJETIVO # 6: Modernizar y fortalecer el funcionamiento del Fondo Adaptación con visión de largo plazo. | C65: E.T. Gestión Talento Humano | D65: Sostenibilidad ambiental | E65: Desarrollar actividad dirigido a colaboradores de la Entidad. | F65: Técnico sección TH | G65: Octubre | H65: Octubre | I65: No aplica | J65: Talento Humano | K65: No aplica
B66: OBJETIVO # 6: Modernizar y fortalecer el funcionamiento del Fondo Adaptación con visión de largo plazo. | C66: E.T. Gestión Talento Humano | D66: Salud cardiovascular | E66: Realizar capacitación en Salud cardiovascular dirigida a todos los colaboradores de la Entidad | F66: Líder del SG-SST y Asesor III TH | G66: Octubre | H66: Octubre | I66: No aplica | J66: Talento Humano | K66: No aplica
B67: OBJETIVO # 6: Modernizar y fortalecer el funcionamiento del Fondo Adaptación con visión de largo plazo. | C67: E.T. Gestión Talento Humano | D67: Gestión socioeconómica en la recuperación del Territorio | E67: Desarrollar actividad dirigido a los colaboradores de la Entidad. | F67: Técnico sección TH | G67: Octubre | H67: Octubre
B68: OBJETIVO # 6: Modernizar y fortalecer el funcionamiento del Fondo Adaptación con visión de largo plazo. | C68: E.T. Gestión Talento Humano | D68: Capacitación en Planeación estratégica Institucional con base en el MIPG e indicadores de gestión. | E68: Desarrollar actividad dirigido a colaboradores responsables de las Politicas de MIPG en la Entidad. | F68: Técnico sección TH | G68: Noviembre | H68: Noviembre | I68: No aplica | J68: Talento Humano | K68: No aplica
B69: OBJETIVO # 6: Modernizar y fortalecer el funcionamiento del Fondo Adaptación con visión de largo plazo. | C69: E.T. Gestión Talento Humano | D69: Identificación de necesidades de capacitación líderes de ET y directivos para vigencia 2022 | E69: Desarrollar actividad | F69: Técnico sección TH | G69: Noviembre | H69: Noviembre | I69: No aplica | J69: Talento Humano | K69: No aplica
B70: OBJETIVO # 6: Modernizar y fortalecer el funcionamiento del Fondo Adaptación con visión de largo plazo. | C70: E.T. Gestión Talento Humano | D70: Evaluación PIC | E70: Desarrollar actividad | F70: Técnico sección TH | G70: Diciembre | H70: Diciembre | I70: No aplica | J70: Talento Humano | K70: No aplica
B71: OBJETIVO # 6: Modernizar y fortalecer el funcionamiento del Fondo Adaptación con visión de largo plazo. | C71: E.T. Gestión Talento Humano | D71: Liderazgo y trabajo en equipo | E71: Realizar capacitación en Liderazgo y trabajo en equipo a la Brigada de Emergencias de la Entidad. | F71: Líder del SG-SST y Asesor III TH | G71: Diciembre | H71: Diciembre | I71: No aplica | J71: Talento Humano | K71: No aplica

Sheet 03d_Plan_de_Incentivos
E2: PLAN DE BIENESTAR E INCENTIVOS INSTITUCIONALES
B17: Articulación Planeación Estratégica Institucional (Objetivo Estratégico) | C17: Área Organizativa o Dependencia | D17: Nombre de la tarea | E17: Descripción de la tarea | F17: Responsable de ejecutar tarea | G17: Fecha Inicio | H17: Fecha Fin | I17: Fuente de Financiación (Inversión, Funcionamiento, otros) | J17: Política de Gestión y Desempeño | K17: Componente Plan Anticorrupción y Atención al Ciudadano (Opcional)
B18: OBJETIVO # 6: Modernizar y fortalecer el funcionamiento del Fondo Adaptación con visión de largo plazo. | C18: E.T. Gestión Talento Humano | D18: Día libre de cumpleaños para el disfrute en familia | E18: Otorgar el día libre de cumpleaños para el disfrute en familia | F18: Técnico Sección TH | G18: Enero | H18: Diciembre | I18: No aplica | J18: Talento Humano
B19: OBJETIVO # 6: Modernizar y fortalecer el funcionamiento del Fondo Adaptación con visión de largo plazo. | C19: E.T. Gestión Talento Humano | D19: Celebración mensual de los cumpleaños a colaboradores | E19: Celebrar mensualmente los cumpleaños a colaboradores | F19: Técnico Sección TH | G19: Enero | H19: Diciembre | I19: No aplica | J19: Talento Humano
B20: OBJETIVO # 6: Modernizar y fortalecer el funcionamiento del Fondo Adaptación con visión de largo plazo. | C20: E.T. Gestión Talento Humano | D20: Días libres para el disfrute en familia (Resolución 444 de 2019) | E20: Otorgar días libres para el disfrute en familia de conformidad con la Resolución 444 de 2019 | F20: Técnico Sección TH | G20: Enero | H20: Diciembre | I20: No aplica | J20: Talento Humano
B21: OBJETIVO # 6: Modernizar y fortalecer el funcionamiento del Fondo Adaptación con visión de largo plazo. | C21: E.T. Gestión Talento Humano | D21: Programa Servimos | E21: Divulgar por medios de comunicación interna los beneficios del Programa Servimos una vez cada trimestre | F21: Técnico Sección TH | G21: Enero | H21: Diciembre | I21: No aplica | J21: Talento Humano
B22: OBJETIVO # 6: Modernizar y fortalecer el funcionamiento del Fondo Adaptación con visión de largo plazo. | C22: E.T. Gestión Talento Humano | D22: Código de integridad y buen Gobierno de la Entidad | E22: Realizar promoción y divulgación de los componentes del Código de integridad y buen Gobierno de la Entidad una vez cada trimestre. | F22: Técnico Sección TH | G22: Enero | H22: Diciembre | I22: No aplica | J22: Integridad
B23: OBJETIVO # 6: Modernizar y fortalecer el funcionamiento del Fondo Adaptación con visión de largo plazo. | C23: E.T. Gestión Talento Humano | D23: Sala Amiga de La Familia Lactante del Entorno Laboral | E23: Hacer seguimiento a la implementación de la Sala Amiga de La Familia Lactante del Entorno Laboral | F23: Técnico Sección TH | G23: Enero | H23: Diciembre | I23: No aplica | J23: Talento Humano
B24: OBJETIVO # 6: Modernizar y fortalecer el funcionamiento del Fondo Adaptación con visión de largo plazo. | C24: E.T. Gestión Talento Humano | D24: Incentivo Horario flexible | E24: Divulgar por medios de comunicación interna el programa de horario flexible | F24: Técnico Sección TH | G24: Febrero | H24: Febrero | I24: No aplica | J24: Talento Humano
B25: OBJETIVO # 6: Modernizar y fortalecer el funcionamiento del Fondo Adaptación con visión de largo plazo. | C25: E.T. Gestión Talento Humano | D25: Incentivo por uso de la bicicleta como medio de transporte | E25: Realizar promoción en medios de comunicación interna del uso de la bicicleta como medio de transporte y otorgar incentivo a los servidores públicos | F25: Técnico Sección TH | G25: Febrero | H25: Febrero | I25: No aplica | J25: Talento Humano
B26: OBJETIVO # 6: Modernizar y fortalecer el funcionamiento del Fondo Adaptación con visión de largo plazo. | C26: E.T. Gestión Talento Humano | D26: Programa Estado joven | E26: Participar del Programa Estado joven | F26: Técnico Sección TH | G26: Febrero | H26: Junio | I26: No aplica | J26: Talento Humano
B27: OBJETIVO # 6: Modernizar y fortalecer el funcionamiento del Fondo Adaptación con visión de largo plazo. | C27: E.T. Gestión Talento Humano | D27: Programa de Teletrabajo o Trabajo virtual en casa | E27: Gestionar el plan de trabajo del programa de Teletrabajo o Trabajo virtual en casa | F27: Técnico Sección TH | G27: Marzo | H27: Junio | I27: No aplica | J27: Talento Humano
B28: OBJETIVO # 6: Modernizar y fortalecer el funcionamiento del Fondo Adaptación con visión de largo plazo. | C28: E.T. Gestión Talento Humano | D28: Promoción y prevención de la violencia con enfoque de género | E28: Realizar una actividad de promoción y prevención de la violencia con enfoque de género | F28: Técnico Sección TH | G28: Marzo | H28: Marzo | I28: No aplica | J28: Talento Humano
B29: OBJETIVO # 6: Modernizar y fortalecer el funcionamiento del Fondo Adaptación con visión de largo plazo. | C29: E.T. Gestión Talento Humano | D29: Feria de servicios de emprendimientos de los familiares de los colaboradores de la Entidad | E29: Desarrollar una Feria de servicios de emprendimientos de los familiares de los colaboradores de la Entidad | F29: Técnico Sección TH | G29: Marzo | H29: Marzo | I29: No aplica | J29: Talento Humano
B30: OBJETIVO # 6: Modernizar y fortalecer el funcionamiento del Fondo Adaptación con visión de largo plazo. | C30: E.T. Gestión Talento Humano | D30: Día de la secretaria | E30: Celebrar el día de la secretaria | F30: Técnico Sección TH | G30: Abril | H30: Abril | I30: No aplica | J30: Talento Humano
B31: OBJETIVO # 6: Modernizar y fortalecer el funcionamiento del Fondo Adaptación con visión de largo plazo. | C31: E.T. Gestión Talento Humano | D31: Día del niño | E31: Celebrar el día del niño | F31: Técnico Sección TH | G31: Abril | H31: Abril | I31: No aplica | J31: Talento Humano
B32: OBJETIVO # 6: Modernizar y fortalecer el funcionamiento del Fondo Adaptación con visión de largo plazo. | C32: E.T. Gestión Talento Humano | D32: Actividad de activación de los valores institucionales | E32: Realizar una actividad de activación de los valores institucionales | F32: Técnico Sección TH | G32: Abril | H32: Abril | I32: No aplica | J32: Integridad
B33: OBJETIVO # 6: Modernizar y fortalecer el funcionamiento del Fondo Adaptación con visión de largo plazo. | C33: E.T. Gestión Talento Humano | D33: Día de la madre | E33: Conmemorar el día de la madre | F33: Técnico Sección TH | G33: Mayo | H33: Mayo | I33: No aplica | J33: Talento Humano
B34: OBJETIVO # 6: Modernizar y fortalecer el funcionamiento del Fondo Adaptación con visión de largo plazo. | C34: E.T. Gestión Talento Humano | D34: Programa de entorno laboral saludable | E34: Ejecutar el Programa de entorno laboral saludable a través de una semana de la salud | F34: Técnico Sección TH | G34: Mayo | H34: Mayo | I34: No aplica | J34: Talento Humano
B35: OBJETIVO # 6: Modernizar y fortalecer el funcionamiento del Fondo Adaptación con visión de largo plazo. | C35: E.T. Gestión Talento Humano | D35: Día del padre | E35: Conmemorar el día del padre | F35: Técnico Sección TH | G35: Junio | H35: Junio | I35: No aplica | J35: Talento Humano
B36: OBJETIVO # 6: Modernizar y fortalecer el funcionamiento del Fondo Adaptación con visión de largo plazo. | C36: E.T. Gestión Talento Humano | D36: Día del servidor público | E36: Conmemorar el día del servidor público | F36: Técnico Sección TH | G36: Junio | H36: Junio | I36: Funcionamiento | J36: Talento Humano Integridad
B37: OBJETIVO # 6: Modernizar y fortalecer el funcionamiento del Fondo Adaptación con visión de largo plazo. | C37: E.T. Gestión Talento Humano | D37: Reconocimientos públicos | E37: Reconocimientos públicos (Por tiempo de servicio, cumplimiento de metas u otro) | F37: Técnico Sección TH | G37: Junio | H37: Junio | I37: No aplica | J37: Talento Humano
B38: OBJETIVO # 6: Modernizar y fortalecer el funcionamiento del Fondo Adaptación con visión de largo plazo. | C38: E.T. Gestión Talento Humano | D38: Vacaciones recreativas | E38: Realizar Vacaciones recreativas a los hijos de los servidores públicos | F38: Técnico Sección TH | G38: Junio | H38: Julio | I38: Funcionamiento | J38: Talento Humano
B39: OBJETIVO # 6: Modernizar y fortalecer el funcionamiento del Fondo Adaptación con visión de largo plazo. | C39: E.T. Gestión Talento Humano | D39: Estrategias para el manejo de situaciones de trabajo bajo presión y técnicas de manejo del estrés | E39: Realizar un taller para la promoción de estrategias para el manejo de situaciones de trabajo bajo presión y técnicas de manejo del estrés | F39: Técnico Sección TH | G39: Julio | H39: Julio | I39: No aplica | J39: Talento Humano
B40: OBJETIVO # 6: Modernizar y fortalecer el funcionamiento del Fondo Adaptación con visión de largo plazo. | C40: E.T. Gestión Talento Humano | D40: Torneos deportivos Interempresas y/o institucional | E40: Participar en un torneos deportivo Interempresas y/o institucional | F40: Técnico Sección TH | G40: Julio | H40: Octubre | I40: No aplica | J40: Talento Humano
B41: OBJETIVO # 6: Modernizar y fortalecer el funcionamiento del Fondo Adaptación con visión de largo plazo. | C41: E.T. Gestión Talento Humano | D41: Promoción y prevención de la violencia con diferentes enfoques | E41: Realizar una actividad de promoción y prevención de la violencia con diferentes enfoques | F41: Técnico Sección TH | G41: Julio | H41: Julio | I41: No aplica | J41: Talento Humano
B42: OBJETIVO # 6: Modernizar y fortalecer el funcionamiento del Fondo Adaptación con visión de largo plazo. | C42: E.T. Gestión Talento Humano | D42: Actividad de fomento de los valores institucionales | E42: Realizar una actividad de fomento de los valores institucionales | F42: Técnico Sección TH | G42: Agosto | H42: Agosto | I42: No aplica | J42: Integridad
B43: OBJETIVO # 6: Modernizar y fortalecer el funcionamiento del Fondo Adaptación con visión de largo plazo. | C43: E.T. Gestión Talento Humano | D43: Curso corto de manualidades a los servidores públicos | E43: Realizar un curso corto de manualidades a los servidores públicos | F43: Técnico Sección TH | G43: Agosto | H43: Agosto | I43: No aplica | J43: Talento Humano
B44: OBJETIVO # 6: Modernizar y fortalecer el funcionamiento del Fondo Adaptación con visión de largo plazo. | C44: E.T. Gestión Talento Humano | D44: Día de amor y amistad | E44: Celebrar el Día de amor y amistad | F44: Técnico Sección TH | G44: Septiembre | H44: Septiembre | I44: No aplica | J44: Talento Humano
B45: OBJETIVO # 6: Modernizar y fortalecer el funcionamiento del Fondo Adaptación con visión de largo plazo. | C45: E.T. Gestión Talento Humano | D45: Actividad de fortalecimiento del clima y cultura institucional | E45: Ejecutar una actividad de fortalecimiento del clima y cultura institucional | F45: Técnico Sección TH | G45: Octubre | H45: Octubre | I45: Funcionamiento | J45: Talento Humano
B46: OBJETIVO # 6: Modernizar y fortalecer el funcionamiento del Fondo Adaptación con visión de largo plazo. | C46: E.T. Gestión Talento Humano | D46: Encuesta de necesidades de formación, bienestar, clima, cultura y sst; medición de satisfacción de actividades de bienestar y medición de apropiación de valores institucionales. | E46: Aplicar encuesta de necesidades de formación, bienestar, clima, cultura y sst; medición de satisfacción de actividades de bienestar y medición de apropiación de valores institucionales. | F46: Técnico Sección TH | G46: Noviembre | H46: Noviembre | I46: No aplica | J46: Talento Humano Integridad
B47: OBJETIVO # 6: Modernizar y fortalecer el funcionamiento del Fondo Adaptación con visión de largo plazo. | C47: E.T. Gestión Talento Humano | D47: Actividad de integración de cierre de vigencia | E47: Ejecutar una actividad de integración de cierre de vigencia | F47: Técnico Sección TH | G47: Diciembre | H47: Diciembre | I47: Funcionamiento | J47: Talento Humano
B48: OBJETIVO # 6: Modernizar y fortalecer el funcionamiento del Fondo Adaptación con visión de largo plazo. | C48: E.T. Gestión Talento Humano | D48: Novena de aguinaldos | E48: Realizar Novena de aguinaldos | F48: Técnico Sección TH | G48: Diciembre | H48: Diciembre | I48: No aplica | J48: Talento Humano
B49: OBJETIVO # 6: Modernizar y fortalecer el funcionamiento del Fondo Adaptación con visión de largo plazo. | C49: E.T. Gestión Talento Humano | D49: Evaluación Plan de bienestar e incentivos | E49: Realizar la evaluación del Plan de bienestar e incentivos de la vigencia | F49: Técnico Sección TH | G49: Diciembre | H49: Diciembre | I49: No aplica | J49: Talento Humano

Sheet 03e_PSST
E2: PLAN DE TRABAJO ANUAL EN SEGURIDAD Y SALUD EN EL TRABAJO - PSST
B17: Articulación Planeación Estratégica Institucional (Objetivo Estratégico) | C17: Área Organizativa o Dependencia | D17: Nombre de la tarea | E17: Descripción de la tarea | F17: Responsable de ejecutar tarea | G17: Fecha Inicio | H17: Fecha Fin | I17: Fuente de Financiación (Inversión, Funcionamiento, otros) | J17: Política de Gestión y Desempeño | K17: Componente Plan Anticorrupción y Atención al Ciudadano (Opcional)
B18: OBJETIVO # 6: Modernizar y fortalecer el funcionamiento del Fondo Adaptación con visión de largo plazo. | C18: E.T. Gestión Financiera y Administrativa - Sección Talento Humano | D18: Plan de mejoramiento | E18: Implementar el plan de mejoramiento producto de la autoevaluación de estándares mínimos 2021 | F18: Líder del SG-SST y Asesor III TH | G18: Marzo | H18: Diciembre | I18: No aplica | J18: Talento Humano | K18: No aplica
B19: OBJETIVO # 6: Modernizar y fortalecer el funcionamiento del Fondo Adaptación con visión de largo plazo. | C19: E.T. Gestión Financiera y Administrativa - Sección Talento Humano | D19: Auditoria interna al SG-SST | E19: Atender la auditoria interna al SG-SST en coordinación con la oficina de control interno | F19: Líder del SG-SST y Asesor III TH | G19: Septiembre | H19: Septiembre | I19: No aplica | J19: Talento Humano | K19: No aplica
B20: OBJETIVO # 6: Modernizar y fortalecer el funcionamiento del Fondo Adaptación con visión de largo plazo. | C20: E.T. Gestión Financiera y Administrativa - Sección Talento Humano | D20: Matriz de requisitos legales en SST | E20: Realizar la evaluación al cumplimiento de los requisitos normativos SST definidos en la matriz de requisitos legales | F20: Líder del SG-SST y Asesor III TH | G20: Agosto | H20: Agosto | I20: No aplica | J20: Talento Humano | K20: No aplica
B21: OBJETIVO # 6: Modernizar y fortalecer el funcionamiento del Fondo Adaptación con visión de largo plazo. | C21: E.T. Gestión Financiera y Administrativa - Sección Talento Humano | D21: Evaluación anual al SG-SST | E21: Realizar la evaluación anual al SG-SST de acuerdo a los estándares mínimos establecidos en la Res. 312 de 2019 | F21: Líder del SG-SST y Asesor III TH | G21: Diciembre | H21: Diciembre | I21: No aplica | J21: Talento Humano | K21: No aplica
B22: OBJETIVO # 6: Modernizar y fortalecer el funcionamiento del Fondo Adaptación con visión de largo plazo. | C22: E.T. Gestión Financiera y Administrativa - Sección Talento Humano | D22: Informe de la evaluación al SG-SST | E22: Disponer el informe de la evaluación al SG-SST para la revisión por la alta dirección | F22: Líder del SG-SST y Asesor III TH | G22: Noviembre | H22: Noviembre | I22: No aplica | J22: Talento Humano | K22: No aplica
B23: OBJETIVO # 6: Modernizar y fortalecer el funcionamiento del Fondo Adaptación con visión de largo plazo. | C23: E.T. Gestión Financiera y Administrativa - Sección Talento Humano | D23: Rendición de cuentas | E23: Gestionar que quienes tienen responsabilidades directas frente al sistema realicen la rendición de cuentas | F23: Líder del SG-SST y Asesor III TH | G23: Octubre | H23: Octubre | I23: No aplica | J23: Talento Humano | K23: No aplica
B24: OBJETIVO # 6: Modernizar y fortalecer el funcionamiento del Fondo Adaptación con visión de largo plazo. | C24: E.T. Gestión Financiera y Administrativa - Sección Talento Humano | D24: Actualizar Matriz de identificación de peligros | E24: Actualizar Matriz de identificación de peligros, evaluación y valoración de los Riesgos y determinación de controles. | F24: Líder del SG-SST y Asesor III TH | G24: Abril | H24: Abril | I24: No aplica | J24: Talento Humano | K24: No aplica
B25: OBJETIVO # 6: Modernizar y fortalecer el funcionamiento del Fondo Adaptación con visión de largo plazo. | C25: E.T. Gestión Financiera y Administrativa - Sección Talento Humano | D25: Análisis estadístico de la accidentalidad | E25: Elaborar el informe del análisis estadístico de la accidentalidad del año inmediatamente anterior | F25: Líder del SG-SST y Asesor III TH | G25: Febrero | H25: Febrero | I25: No aplica | J25: Talento Humano | K25: No aplica
B26: OBJETIVO # 6: Modernizar y fortalecer el funcionamiento del Fondo Adaptación con visión de largo plazo. | C26: E.T. Gestión Financiera y Administrativa - Sección Talento Humano | D26: Actualizar el plan de emergencias | E26: Actualizar el plan de prevención, preparación y respuesta ante emergencias de acuerdo a los requisitos legales | F26: Líder del SG-SST y Asesor III TH | G26: Mayo | H26: Mayo | I26: No aplica | J26: Talento Humano | K26: No aplica
B27: OBJETIVO # 6: Modernizar y fortalecer el funcionamiento del Fondo Adaptación con visión de largo plazo. | C27: E.T. Gestión Financiera y Administrativa - Sección Talento Humano | D27: Participar en el simulacro Distrital. | E27: Participar en el simulacro Distrital. | F27: Líder del SG-SST y Asesor III TH | G27: Octubre | H27: Octubre | I27: No aplica | J27: Talento Humano | K27: No aplica
B28: OBJETIVO # 6: Modernizar y fortalecer el funcionamiento del Fondo Adaptación con visión de largo plazo. | C28: E.T. Gestión Financiera y Administrativa - Sección Talento Humano | D28: Evaluaciones médicas ocupacionales | E28: Realizar las evaluaciones médicas ocupacionales periódicas | F28: Líder del SG-SST y Asesor III TH | G28: Noviembre | H28: Noviembre | I28: No aplica | J28: Talento Humano | K28: No aplica
B29: OBJETIVO # 6: Modernizar y fortalecer el funcionamiento del Fondo Adaptación con visión de largo plazo. | C29: E.T. Gestión Financiera y Administrativa - Sección Talento Humano | D29: Protocolos de Bioseguridad | E29: Realizar seguimiento a la implementación de los Protocolos de Bioseguridad para la Prevención del COVID-19 | F29: Líder del SG-SST y Asesor III TH | G29: Julio | H29: Julio | I29: No aplica | J29: Talento Humano | K29: No aplica
B30: OBJETIVO # 6: Modernizar y fortalecer el funcionamiento del Fondo Adaptación con visión de largo plazo. | C30: E.T. Gestión Financiera y Administrativa - Sección Talento Humano | D30: Reinducción SST | E30: Realizar reinducción a todos los colaboradores en temas de SST | F30: Líder del SG-SST y Asesor III TH | G30: Enero | H30: Enero | I30: No aplica | J30: Talento Humano | K30: No aplica
B31: OBJETIVO # 6: Modernizar y fortalecer el funcionamiento del Fondo Adaptación con visión de largo plazo. | C31: E.T. Gestión Financiera y Administrativa - Sección Talento Humano | D31: Investigación de incidentes y accidentes de trabajo | E31: Realizar capacitación en Investigación de incidentes y accidentes de trabajo a los miembros del COPASST | F31: Líder del SG-SST y Asesor III TH | G31: Agosto | H31: Agosto | I31: No aplica | J31: Talento Humano | K31: No aplica
B32: OBJETIVO # 6: Modernizar y fortalecer el funcionamiento del Fondo Adaptación con visión de largo plazo. | C32: E.T. Gestión Financiera y Administrativa - Sección Talento Humano | D32: Inspecciones de seguridad | E32: Realizar capacitación en Inspecciones de seguridad a los miembros del COPASST | F32: Líder del SG-SST y Asesor III TH | G32: Febrero | H32: Febrero | I32: No aplica | J32: Talento Humano | K32: No aplica
B33: OBJETIVO # 6: Modernizar y fortalecer el funcionamiento del Fondo Adaptación con visión de largo plazo. | C33: E.T. Gestión Financiera y Administrativa - Sección Talento Humano | D33: Acoso laboral | E33: Realizar capacitación en Acoso laboral a los miembros del Comité de Convivencia laboral | F33: Líder del SG-SST y Asesor III TH | G33: Abril | H33: Abril | I33: No aplica | J33: Talento Humano | K33: No aplica
B34: OBJETIVO # 6: Modernizar y fortalecer el funcionamiento del Fondo Adaptación con visión de largo plazo. | C34: E.T. Gestión Financiera y Administrativa - Sección Talento Humano | D34: Primeros auxilios | E34: Realizar capacitación en Primeros auxilios a la Brigada de Emergencias de la Entidad. | F34: Líder del SG-SST y Asesor III TH | G34: Marzo | H34: Marzo | I34: No aplica | J34: Talento Humano | K34: No aplica
B35: OBJETIVO # 6: Modernizar y fortalecer el funcionamiento del Fondo Adaptación con visión de largo plazo. | C35: E.T. Gestión Financiera y Administrativa - Sección Talento Humano | D35: Prevención y control del fuego | E35: Realizar capacitación en Prevención y control del fuego a la Brigada de Emergencias de la Entidad. | F35: Líder del SG-SST y Asesor III TH | G35: Junio | H35: Junio | I35: No aplica | J35: Talento Humano | K35: No aplica
B36: OBJETIVO # 6: Modernizar y fortalecer el funcionamiento del Fondo Adaptación con visión de largo plazo. | C36: E.T. Gestión Financiera y Administrativa - Sección Talento Humano | D36: Evacuación y rescate | E36: Realizar capacitación en Evacuación y rescate a la Brigada de Emergencias de la Entidad. | F36: Líder del SG-SST y Asesor III TH | G36: Septiembre | H36: Septiembre | I36: No aplica | J36: Talento Humano | K36: No aplica
B37: OBJETIVO # 6: Modernizar y fortalecer el funcionamiento del Fondo Adaptación con visión de largo plazo. | C37: E.T. Gestión Financiera y Administrativa - Sección Talento Humano | D37: Liderazgo y trabajo en equipo | E37: Realizar capacitación en Liderazgo y trabajo en equipo a la Brigada de Emergencias de la Entidad. | F37: Líder del SG-SST y Asesor III TH | G37: Diciembre | H37: Diciembre | I37: No aplica | J37: Talento Humano | K37: No aplica
B38: OBJETIVO # 6: Modernizar y fortalecer el funcionamiento del Fondo Adaptación con visión de largo plazo. | C38: E.T. Gestión Financiera y Administrativa - Sección Talento Humano | D38: Higiene postural | E38: Realizar capacitación en Higiene postural dirigida a todos los colaboradores de la Entidad | F38: Líder del SG-SST y Asesor III TH | G38: Junio | H38: Noviembre | I38: No aplica | J38: Talento Humano | K38: No aplica
B39: OBJETIVO # 6: Modernizar y fortalecer el funcionamiento del Fondo Adaptación con visión de largo plazo. | C39: E.T. Gestión Financiera y Administrativa - Sección Talento Humano | D39: Habitos y Estilos de vida saludables | E39: Realizar capacitación en Habitos y Estilos de vida saludables dirigida a todos los colaboradores de la Entidad | F39: Líder del SG-SST y Asesor III TH | G39: Mayo | H39: Mayo | I39: No aplica | J39: Talento Humano | K39: No aplica
B40: OBJETIVO # 6: Modernizar y fortalecer el funcionamiento del Fondo Adaptación con visión de largo plazo. | C40: E.T. Gestión Financiera y Administrativa - Sección Talento Humano | D40: Prevención y manejo del Estrés laboral | E40: Realizar capacitación en Prevención y manejo del Estrés laboral dirigida a todos los colaboradores de la Entidad | F40: Líder del SG-SST y Asesor III TH | G40: Julio | H40: Julio | I40: No aplica | J40: Talento Humano | K40: No aplica
B41: OBJETIVO # 6: Modernizar y fortalecer el funcionamiento del Fondo Adaptación con visión de largo plazo. | C41: E.T. Gestión Financiera y Administrativa - Sección Talento Humano | D41: Salud cardiovascular | E41: Realizar capacitación en Salud cardiovascular dirigida a todos los colaboradores de la Entidad | F41: Líder del SG-SST y Asesor III TH | G41: Octubre | H41: Octubre | I41: No aplica | J41: Talento Humano | K41: No aplica

Sheet 04_PINAR
D2: PLAN INSTITUCIONAL DE ARCHIVOS - PINAR
B17: Articulación Planeación Estratégica Institucional (Objetivo Estratégico) | C17: Área Organizativa o Dependencia | D17: Nombre de la tarea | E17: Descripción de la tarea | F17: Responsable de ejecutar tarea | G17: Fecha Inicio | H17: Fecha Fin | I17: Fuente de Financiación (Inversión, Funcionamiento, otros) | J17: Política de Gestión y Desempeño | K17: Componente Plan Anticorrupción y Atención al Ciudadano (Opcional)
B18: Perspectiva Interna: Fortalecer una cultura organizacional orientada al relacionamiento eficaz con los usuarios, al desarrollo del talento humano y a la modernización de la gestión del Fondo Adaptación | C18: E.T. Gestión de servicios administrativos y gestión documental | D18: ORGANIZACIÓN CON PROCESOS TÉCNICOS DE ARCHIVO Y DIGITALIZACIÓN DE LOS EXPEDIENTES DEL ARCHIVO DE GESTIÓN CENTRALIZADO | E18: Continuar la organización del acervo documental con procesos técnicos de archivo e iniciar la digitalización de expedientes que aplican para este proceso del Fondo Adaptación. | F18: E.T. Gestión de servicios administrativos y gestión documental | G18: 2023-01-03 | H18: 2023-12-31 | I18: Funcionamiento | J18: Gestión Documental | K18: N.A.
B19: Perspectiva Interna: Fortalecer una cultura organizacional orientada al relacionamiento eficaz con los usuarios, al desarrollo del talento humano y a la modernización de la gestión del Fondo Adaptación | C19: E.T. Gestión de servicios administrativos y gestión documental | D19: PROYECTO APLICACIÓN DE TRD | E19: Aplicación de las TRD y actualización con las últimas estructuras orgánico-funcionales teniendo en cuenta que el proceso de convalidación inicio en el 2021 con las estructuras a la fecha y para este 2022 y 2023 dado que la entidad ha adoptado nuevas estructuras orgánico - funcionales. | F19: E.T. Gestión de servicios administrativos y gestión documental | G19: 2023-01-03 | H19: 2023-12-31 | I19: Funcionamiento | J19: Gestión Documental | K19: N.A.
B20: Perspectiva Interna: Fortalecer una cultura organizacional orientada al relacionamiento eficaz con los usuarios, al desarrollo del talento humano y a la modernización de la gestión del Fondo Adaptación | C20: E.T. Gestión de servicios administrativos y gestión documental | D20: PROYECTO IMPLEMENTACIÓN SGDEA | E20: Implementar un sistema de gestión de documentos electrónicos de archivo en el Fondo Adaptación, de acuerdo con los requisitos definidos en el MOREQ. | F20: E.T. Gestión de servicios administrativos y gestión documental | G20: 2023-01-03 | H20: 2023-12-31 | I20: Funcionamiento | J20: Gestión Documental | K20: N.A.

Sheet PIGA
D2: PLAN INSTITUCIONAL DE GESTIÓN AMBIENTAL - PIGA
B17: Articulación Planeación Estratégica Institucional (Objetivo Estratégico) | C17: Área Organizativa o Dependencia | D17: Nombre de la tarea | E17: Descripción de la tarea | F17: Responsable de ejecutar tarea | G17: Fecha Inicio | H17: Fecha Fin | I17: Fuente de Financiación (Inversión, Funcionamiento, otros) | J17: Política de Gestión y Desempeño | K17: Componente Plan Anticorrupción y Atención al Ciudadano (Opcional) | L17: Meta | M17: Enero | N17: PORCENTAJE DE EJECUCION | O17: Febrero | P17: PORCENTAJE DE EJECUCION | Q17: Marzo | R17: PORCENTAJE DE EJECUCION | S17: Abril | T17: PORCENTAJE DE EJECUCION | U17: Mayo | V17: PORCENTAJE DE EJECUCION | W17: Junio | X17: PORCENTAJE DE EJECUCION | Y17: Julio | Z17: PORCENTAJE DE EJECUCION | AA17: Agosto | AB17: PORCENTAJE DE EJECUCION | AC17: Septiembre | AD17: PORCENTAJE DE EJECUCION | AE17: Octubre | AF17: PORCENTAJE DE EJECUCION | AG17: Noviembre | AH17: PORCENTAJE DE EJECUCION | AI17: Diciembre | AJ17: PORCENTAJE DE EJECUCION
B18: OBJETIVO # 6: Modernizar y fortalecer el funcionamiento del Fondo Adaptación con visión de largo plazo. | C18: E.T. Gestión de servicios administrativos y gestión documental - Sección Administrativa | D18: Sensibilizar en la Gestión Integral de Residuos Solidos al contratista de Aseo y Cafetería | E18: El contratista de Aseo y Cafetería deberá poseer los conocimientos acerca de: - Manejo de sustancias químicas y atención de derrames. - Sistema globalmente armonizado. - Ruta de gestión integral de residuos solidos. - Conocimientos básicos en las corrientes de residuos solidos: > Código de colores. > Residuos peligrosos y posconsumo. - Programa de gestión integral de residuos solidos. | F18: E.T. Gestión de servicios administrativos y gestión documental - Sección Administrativa | G18: 2023-02-06 | H18: 2023-12-31 | I18: No aplica | J18: No aplica | K18: No aplica | L18: 16,6% Febrero 33,2% Abril 49,8% Junio 66,4% Agosto 83% Octubre 100% Diciembre | O18: Socializar el programa de Gestión Integral de Residuos con el contratista de Aseo y Cafetería | P18: 0.166 | S18: Sensibilizar en la Gestión Integral de Residuos Solidos al contratista de Aseo y Cafetería | T18: 0.332 | W18: Sensibilizar en la Gestión Integral de Residuos Solidos al contratista de Aseo y Cafetería | X18: 0.498 | AA18: Sensibilizar en la Gestión Integral de Residuos Solidos al contratista de Aseo y Cafetería | AB18: 0.664 | AE18: Sensibilizar en la Gestión Integral de Residuos Solidos al contratista de Aseo y Cafetería | AF18: 0.83 | AI18: Sensibilizar en la Gestión Integral de Residuos Solidos al contratista de Aseo y Cafetería | AJ18: 1
B19: OBJETIVO # 6: Modernizar y fortalecer el funcionamiento del Fondo Adaptación con visión de largo plazo. | C19: E.T. Gestión de servicios administrativos y gestión documental - Sección Administrativa | D19: Sensibilización sobre clasificación de residuos y uso de los puntos ecológicos, a los funcionarios y colaboradores de Fondo Adaptación | E19: Desarrollar 2 actividades de sensibilización al año una en cada semestre del año | F19: E.T. Gestión de servicios administrativos y gestión documental - Sección Administrativa | G19: 2023-01-25 | H19: 2023-12-31 | I19: No aplica | J19: No aplica | K19: No aplica | L19: 50% Abril 100% Octubre | S19: Sensibilización sobre clasificación de residuos y uso de los puntos ecológicos, a los funcionarios y colaboradores de Fondo Adaptación | T19: 0.5 | AE19: Sensibilización sobre clasificación de residuos y uso de los puntos ecológicos, a los funcionarios y colaboradores de Fondo Adaptación | AF19: 1
B20: OBJETIVO # 6: Modernizar y fortalecer el funcionamiento del Fondo Adaptación con visión de largo plazo. | C20: E.T. Gestión de servicios administrativos y gestión documental - Sección Administrativa | D20: Registrar la información acerca del volumen de residuos generados por la Entidad | E20: Realizar el seguimiento de los residuos solidos generados (Aprovechables, no aprovechables, especiales y peligrosos). | F20: E.T. Gestión de servicios administrativos y gestión documental - Sección Administrativa | G20: 2023-01-25 | H20: 2023-12-31 | I20: No aplica | J20: No aplica | K20: No aplica | L20: 8,3% Mensual | M20: Registrar la información acerca del volumen de residuos generados por la Entidad | N20: 0.083 | O20: Registrar la información acerca del volumen de residuos generados por la Entidad | P20: =N20+8.3% -> 0.166 | Q20: Registrar la información acerca del volumen de residuos generados por la Entidad | R20: =P20+8.3% -> 0.249 | S20: Registrar la información acerca del volumen de residuos generados por la Entidad | T20: =R20+8.3% -> 0.332 | U20: Registrar la información acerca del volumen de residuos generados por la Entidad | V20: =T20+8.3% -> 0.415 | W20: Registrar la información acerca del volumen de residuos generados por la Entidad | X20: =V20+8.3% -> 0.498 | Y20: Registrar la información acerca del volumen de residuos generados por la Entidad | Z20: =X20+8.3% -> 0.581 | AA20: Registrar la información acerca del volumen de residuos generados por la Entidad | AB20: =Z20+8.3% -> 0.664 | AC20: Registrar la información acerca del volumen de residuos generados por la Entidad | AD20: =AB20+8.3% -> 0.747 | AE20: Registrar la información acerca del volumen de residuos generados por la Entidad | AF20: =AD20+8.3% -> 0.83 | AG20: Registrar la información acerca del volumen de residuos generados por la Entidad | AH20: =AF20+8.3% -> 0.913 | AI20: Registrar la información acerca del volumen de residuos generados por la Entidad | AJ20: 1
B21: OBJETIVO # 6: Modernizar y fortalecer el funcionamiento del Fondo Adaptación con visión de largo plazo. | C21: E.T. Gestión de servicios administrativos y gestión documental - Sección Administrativa | D21: Registrar la información acerca del consumo y ahorro de ENERGIA generado por la Entidad | E21: Realizar el seguimiento del consumo de energía (KW-h) mensual. | F21: E.T. Gestión de servicios administrativos y gestión documental - Sección Administrativa | G21: 2023-01-25 | H21: 2023-12-31 | I21: No aplica | J21: No aplica | K21: No aplica | L21: 8,3% Mensual | M21: Registrar la información acerca del consumo y ahorro de ENERGIA generado por la Entidad | N21: 0.083 | O21: Registrar la información acerca del consumo y ahorro de ENERGIA generado por la Entidad | P21: 0.166 | Q21: Registrar la información acerca del consumo y ahorro de ENERGIA generado por la Entidad | R21: 0.249 | S21: Registrar la información acerca del consumo y ahorro de ENERGIA generado por la Entidad | T21: 0.332 | U21: Registrar la información acerca del consumo y ahorro de ENERGIA generado por la Entidad | V21: 0.415 | W21: Registrar la información acerca del consumo y ahorro de ENERGIA generado por la Entidad | X21: =V21+8.3% -> 0.498 | Y21: Registrar la información acerca del consumo y ahorro de ENERGIA generado por la Entidad | Z21: =X21+8.3% -> 0.581 | AA21: Registrar la información acerca del consumo y ahorro de ENERGIA generado por la Entidad | AB21: =Z21+8.3% -> 0.664 | AC21: Registrar la información acerca del consumo y ahorro de ENERGIA generado por la Entidad | AD21: =AB21+8.3% -> 0.747 | AE21: Registrar la información acerca del consumo y ahorro de ENERGIA generado por la Entidad | AF21: 0.83 | AG21: Registrar la información acerca del consumo y ahorro de ENERGIA generado por la Entidad | AH21: 0.913 | AI21: Registrar la información acerca del consumo y ahorro de ENERGIA generado por la Entidad | AJ21: 1
B22: OBJETIVO # 6: Modernizar y fortalecer el funcionamiento del Fondo Adaptación con visión de largo plazo. | C22: E.T. Gestión de servicios administrativos y gestión documental - Sección Administrativa | D22: Registrar la información acerca del consumo de AGUA generado por la Entidad | E22: Realizar el seguimiento del consumo de agua (m3) mensual. | F22: E.T. Gestión de servicios administrativos y gestión documental - Sección Administrativa | G22: 2023-01-25 | H22: 2023-12-31 | I22: No aplica | J22: No aplica | K22: No aplica | L22: 8,3% Mensual | M22: Registrar la información acerca del consumo de AGUA generado por la Entidad | N22: 0.083 | O22: Registrar la información acerca del consumo de AGUA generado por la Entidad | P22: 0.166 | Q22: Registrar la información acerca del consumo de AGUA generado por la Entidad | R22: 0.249 | S22: Registrar la información acerca del consumo de AGUA generado por la Entidad | T22: 0.332 | U22: Registrar la información acerca del consumo de AGUA generado por la Entidad | V22: 0.415 | W22: Registrar la información acerca del consumo de AGUA generado por la Entidad | X22: 0.498 | Y22: Registrar la información acerca del consumo de AGUA generado por la Entidad | Z22: 0.581 | AA22: Registrar la información acerca del consumo de AGUA generado por la Entidad | AB22: 0.664 | AC22: Registrar la información acerca del consumo de AGUA generado por la Entidad | AD22: 0.747 | AE22: Registrar la información acerca del consumo de AGUA generado por la Entidad | AF22: 0.83 | AG22: Registrar la información acerca del consumo de AGUA generado por la Entidad | AH22: 0.913 | AI22: Registrar la información acerca del consumo de AGUA generado por la Entidad | AJ22: 1
B23: OBJETIVO # 6: Modernizar y fortalecer el funcionamiento del Fondo Adaptación con visión de largo plazo. | C23: E.T. Gestión de servicios administrativos y gestión documental - Sección Administrativa | D23: Registrar la información acerca del consumo de PAPEL generado por la Entidad | E23: Realizar el seguimiento del consumo de papel (Unidades de resmas) mensuales. | F23: E.T. Gestión de servicios administrativos y gestión documental - Sección Administrativa | G23: 2023-01-25 | H23: 2023-12-31 | I23: No aplica | J23: No aplica | K23: No aplica | L23: 8,3% Mensual | M23: Registrar la información acerca del consumo de PAPEL generado por la Entidad | N23: 0.083 | O23: Registrar la información acerca del consumo de PAPEL generado por la Entidad | P23: 0.166 | Q23: Registrar la información acerca del consumo de PAPEL generado por la Entidad | R23: 0.249 | S23: Registrar la información acerca del consumo de PAPEL generado por la Entidad | T23: 0.332 | U23: Registrar la información acerca del consumo de PAPEL generado por la Entidad | V23: 0.415 | W23: Registrar la información acerca del consumo de PAPEL generado por la Entidad | X23: 0.498 | Y23: Registrar la información acerca del consumo de PAPEL generado por la Entidad | Z23: 0.581 | AA23: Registrar la información acerca del consumo de PAPEL generado por la Entidad | AB23: 0.664 | AC23: Registrar la información acerca del consumo de PAPEL generado por la Entidad | AD23: 0.747 | AE23: Registrar la información acerca del consumo de PAPEL generado por la Entidad | AF23: 0.83 | AG23: Registrar la información acerca del consumo de PAPEL generado por la Entidad | AH23: 0.913 | AI23: Registrar la información acerca del consumo de PAPEL generado por la Entidad | AJ23: 1
B24: OBJETIVO # 6: Modernizar y fortalecer el funcionamiento del Fondo Adaptación con visión de largo plazo. | C24: E.T. Gestión de servicios administrativos y gestión documental - Sección Administrativa | D24: Seguimiento consumo de reprografía (CERO PAPEL) | E24: Realizar el seguimiento a la reprografía de la entidad | F24: E.T. Gestión de servicios administrativos y gestión documental - Sección Administrativa | G24: 2023-01-25 | H24: 2023-12-31 | I24: No aplica | J24: No aplica | K24: No aplica | L24: 8,3% Mensual | M24: Seguimiento consumo de reprografía (CERO PAPEL) | N24: 0.083 | O24: Seguimiento consumo de reprografía (CERO PAPEL) | P24: 0.166 | Q24: Seguimiento consumo de reprografía (CERO PAPEL) | R24: 0.249 | S24: Seguimiento consumo de reprografía (CERO PAPEL) | T24: 0.332 | U24: Seguimiento consumo de reprografía (CERO PAPEL) | V24: 0.415 | W24: Seguimiento consumo de reprografía (CERO PAPEL) | X24: 0.498 | Y24: Seguimiento consumo de reprografía (CERO PAPEL) | Z24: 0.581 | AA24: Seguimiento consumo de reprografía (CERO PAPEL) | AB24: 0.664 | AC24: Seguimiento consumo de reprografía (CERO PAPEL) | AD24: 0.747 | AE24: Seguimiento consumo de reprografía (CERO PAPEL) | AF24: 0.83 | AG24: Seguimiento consumo de reprografía (CERO PAPEL) | AH24: 0.913 | AI24: Seguimiento consumo de reprografía (CERO PAPEL) | AJ24: 1
B25: OBJETIVO # 6: Modernizar y fortalecer el funcionamiento del Fondo Adaptación con visión de largo plazo. | C25: E.T. Gestión de servicios administrativos y gestión documental - Sección Administrativa | D25: Seguimiento consumo de COMBUSTIBLE | E25: Realizar el seguimiento al consumo de combustible (Galones-Kilometraje). | F25: E.T. Gestión de servicios administrativos y gestión documental - Sección Administrativa | G25: 2023-01-25 | H25: 2023-12-31 | I25: No aplica | J25: No aplica | K25: No aplica | L25: 8,3% Mensual | M25: Seguimiento consumo de COMBUSTIBLE | N25: 0.083 | O25: Seguimiento consumo de COMBUSTIBLE | P25: 0.166 | Q25: Seguimiento consumo de COMBUSTIBLE | R25: 0.249 | S25: Seguimiento consumo de COMBUSTIBLE | T25: 0.332 | U25: Seguimiento consumo de COMBUSTIBLE | V25: 0.415 | W25: Seguimiento consumo de COMBUSTIBLE | X25: 0.498 | Y25: Seguimiento consumo de COMBUSTIBLE | Z25: 0.581 | AA25: Seguimiento consumo de COMBUSTIBLE | AB25: 0.664 | AC25: Seguimiento consumo de COMBUSTIBLE | AD25: 0.747 | AE25: Seguimiento consumo de COMBUSTIBLE | AF25: 0.83 | AG25: Seguimiento consumo de COMBUSTIBLE | AH25: 0.913 | AI25: Seguimiento consumo de COMBUSTIBLE | AJ25: 1
B26: OBJETIVO # 6: Modernizar y fortalecer el funcionamiento del Fondo Adaptación con visión de largo plazo. | C26: E.T. Gestión de servicios administrativos y gestión documental - Sección Administrativa | D26: Sensibilizar a los colaboradores de la entidad en temas de gestión ambiental (Consumo de agua, energía, papel, combustible, compras sostenibles, biodiversidad, entre otros). | E26: Divulgar mediante capacitaciones, charlas, piezas graficas, campañas virtuales, entre otros medios gráficos los temas de los programas de gestión ambiental. | F26: E.T. Gestión de servicios administrativos y gestión documental - Sección Administrativa | G26: 2023-01-25 | H26: 2023-12-31 | I26: No aplica | J26: No aplica | K26: No aplica | L26: 8,3% Mensual | M26: Sensibilizar a los colaboradores de la entidad en temas de gestión ambiental (Consumo de agua, energía, papel, combustible, compras sostenibles, biodiversidad, entre otros). | N26: 0.083 | O26: Sensibilizar a los colaboradores de la entidad en temas de gestión ambiental (Consumo de agua, energía, papel, combustible, compras sostenibles, biodiversidad, entre otros). | P26: 0.166 | Q26: Sensibilizar a los colaboradores de la entidad en temas de gestión ambiental (Consumo de agua, energía, papel, combustible, compras sostenibles, biodiversidad, entre otros). | R26: 0.249 | S26: Sensibilizar a los colaboradores de la entidad en temas de gestión ambiental (Consumo de agua, energía, papel, combustible, compras sostenibles, biodiversidad, entre otros). | T26: 0.332 | U26: Sensibilizar a los colaboradores de la entidad en temas de gestión ambiental (Consumo de agua, energía, papel, combustible, compras sostenibles, biodiversidad, entre otros). | V26: 0.415 | W26: Sensibilizar a los colaboradores de la entidad en temas de gestión ambiental (Consumo de agua, energía, papel, combustible, compras sostenibles, biodiversidad, entre otros). | X26: 0.498 | Y26: Sensibilizar a los colaboradores de la entidad en temas de gestión ambiental (Consumo de agua, energía, papel, combustible, compras sostenibles, biodiversidad, entre otros). | Z26: 0.581 | AA26: Sensibilizar a los colaboradores de la entidad en temas de gestión ambiental (Consumo de agua, energía, papel, combustible, compras sostenibles, biodiversidad, entre otros). | AB26: 0.664 | AC26: Sensibilizar a los colaboradores de la entidad en temas de gestión ambiental (Consumo de agua, energía, papel, combustible, compras sostenibles, biodiversidad, entre otros). | AD26: 0.747 | AE26: Sensibilizar a los colaboradores de la entidad en temas de gestión ambiental (Consumo de agua, energía, papel, combustible, compras sostenibles, biodiversidad, entre otros). | AF26: 0.83 | AG26: Sensibilizar a los colaboradores de la entidad en temas de gestión ambiental (Consumo de agua, energía, papel, combustible, compras sostenibles, biodiversidad, entre otros). | AH26: 0.913 | AI26: Sensibilizar a los colaboradores de la entidad en temas de gestión ambiental (Consumo de agua, energía, papel, combustible, compras sostenibles, biodiversidad, entre otros). | AJ26: 1
B27: OBJETIVO # 6: Modernizar y fortalecer el funcionamiento del Fondo Adaptación con visión de largo plazo. | C27: E.T. Gestión de servicios administrativos y gestión documental - Sección Administrativa | D27: Divulgación del sistema de gestión ambiental | E27: Socializar el sistema de gestión ambiental con los funcionarios y colaboradores de la entidad. | F27: E.T. Gestión de servicios administrativos y gestión documental - Sección Administrativa | G27: 2023-03-01 | H27: 2023-03-31 | I27: No aplica | J27: No aplica | K27: No aplica | L27: 100% Marzo | Q27: Divulgación del sistema de gestión ambiental | R27: 1
B28: OBJETIVO # 6: Modernizar y fortalecer el funcionamiento del Fondo Adaptación con visión de largo plazo. | C28: E.T. Gestión de servicios administrativos y gestión documental - Sección Administrativa | D28: Actualización general del sistema de gestión ambiental | E28: Revisar la documentación asociada al sistema de gestión ambiental: Políticas, planes, programas, entre otros. | F28: E.T. Gestión de servicios administrativos y gestión documental - Sección Administrativa | G28: 2023-12-01 | H28: 2023-12-31 | I28: No aplica | J28: No aplica | K28: No aplica | L28: 100% Diciembre | AI28: Actualización general del sistema de gestión ambiental | AJ28: 1
B29: OBJETIVO # 6: Modernizar y fortalecer el funcionamiento del Fondo Adaptación con visión de largo plazo. | C29: E.T. Gestión de servicios administrativos y gestión documental - Sección Administrativa | D29: Actualización de las matriz de aspectos e impactos ambientales. | E29: Revisar la matriz de aspectos e impactos ambientales al menos una vez en el semestre | F29: E.T. Gestión de servicios administrativos y gestión documental - Sección Administrativa | G29: 2023-01-25 | H29: 2023-12-31 | I29: No aplica | J29: No aplica | K29: No aplica | L29: 50% Junio 100% Diciembre | W29: Actualización de las matriz de aspectos e impactos ambientales. | X29: 0.5 | AI29: Actualización de las matriz de aspectos e impactos ambientales. | AJ29: 1
B30: OBJETIVO # 6: Modernizar y fortalecer el funcionamiento del Fondo Adaptación con visión de largo plazo. | C30: E.T. Gestión de servicios administrativos y gestión documental - Sección Administrativa | D30: Actualización de la matriz de requisitos legales y otros requisitos ambientales. | E30: Revisar la matriz de requisitos legales y otros requisitos ambientales al menos una vez en el semestre | F30: E.T. Gestión de servicios administrativos y gestión documental - Sección Administrativa | G30: 2023-01-25 | H30: 2023-12-31 | I30: No aplica | J30: No aplica | K30: No aplica | L30: 50% Junio 100% Diciembre | W30: Actualización de la matriz de requisitos legales y otros requisitos ambientales. | X30: 0.5 | AI30: Actualización de la matriz de requisitos legales y otros requisitos ambientales. | AJ30: 1
B31: OBJETIVO # 6: Modernizar y fortalecer el funcionamiento del Fondo Adaptación con visión de largo plazo. | C31: E.T. Gestión de servicios administrativos y gestión documental - Sección Administrativa | D31: Actualización del manual de bienes. | E31: Revisar el manual de bienes del Fondo Adaptación una vez al año. | F31: E.T. Gestión de servicios administrativos y gestión documental - Sección Administrativa | G31: 2023-01-25 | H31: 2023-12-31 | I31: No aplica | J31: No aplica | K31: No aplica | L31: 100% Junio | W31: Actualización del manual de bienes. | X31: 1
B32: OBJETIVO # 6: Modernizar y fortalecer el funcionamiento del Fondo Adaptación con visión de largo plazo. | C32: E.T. Gestión de servicios administrativos y gestión documental - Sección Administrativa | D32: Actualización del inventario de bienes de la entidad. | E32: Desarrollar la actividad al menos 2 veces en el año. | F32: E.T. Gestión de servicios administrativos y gestión documental - Sección Administrativa | G32: 2023-01-25 | H32: 2023-12-31 | I32: No aplica | J32: No aplica | K32: No aplica | L32: 50% Junio 100% Diciembre | W32: Actualización del inventario de bienes de la entidad. | X32: 0.5 | AI32: Actualización del inventario de bienes de la entidad. | AJ32: 1
K33: PORCENTAJE DE EJCUCION MENSUAL | M33: TOTAL ACTIVIDADES PLANIFICADAS ENERO | N33: 7 | O33: TOTAL ACTIVIDADES PLANIFICADAS FEBRERO | P33: 8 | Q33: TOTAL ACTIVIDADES PLANIFICADAS MARZO | R33: =COUNTA(P18:P27) -> 8 | S33: TOTAL ACTIVIDADES PLANIFICADAS ABRIL | T33: 9 | U33: TOTAL ACTIVIDADES PLANIFICADAS MAYO | V33: 7 | W33: TOTAL ACTIVIDADES PLANIFICADAS JUNIO | X33: 12 | Y33: TOTAL ACTIVIDADES PLANIFICADAS JULIO | Z33: 7 | AA33: TOTAL ACTIVIDADES PLANIFICADAS AGOSTO | AB33: 8 | AC33: TOTAL ACTIVIDADES PLANIFICADAS SEPTIEMBRE | AD33: 7 | AE33: TOTAL ACTIVIDADES PLANIFICADAS OCTUBRE | AF33: 9 | AG33: TOTAL ACTIVIDADES PLANIFICADAS NOVIEMBRE | AH33: 7 | AI33: TOTAL ACTIVIDADES PLANIFICADAS DICIEMBRE | AJ33: 12
M34: NUMERO DE ACTIVIDADES EJECUTADAS ENERO | O34: NUMERO DE ACTIVIDADES EJECUTADAS FEBRERO | Q34: NUMERO DE ACTIVIDADES EJECUTADAS MARZO | S34: NUMERO DE ACTIVIDADES EJECUTADAS ABRIL | U34: NUMERO DE ACTIVIDADES EJECUTADAS MAYO | W34: NUMERO DE ACTIVIDADES EJECUTADAS JUNIO | Y34: NUMERO DE ACTIVIDADES EJECUTADAS JULIO | AA34: NUMERO DE ACTIVIDADES AGOSTO | AC34: NUMERO DE ACTIVIDADES SEPTIEMBRE | AE34: NUMERO DE ACTIVIDADES OCTUBRE | AG34: NUMERO DE ACTIVIDADES NOVIEMBRE | AI34: NUMERO DE ACTIVIDADES DICIEMBRE
M35: NUMERO DE ACTIVIDADES SIN EJECUTAR ENERO | O35: NUMERO DE ACTIVIDADES SIN EJECUTAR FEBRERO | Q35: NUMERO DE ACTIVIDADES SIN EJECUTAR MARZO | S35: NUMERO DE ACTIVIDADES SIN EJECUTAR ABRIL | U35: NUMERO DE ACTIVIDADES SIN EJECUTAR MAYO | W35: NUMERO DE ACTIVIDADES SIN EJECUTAR JUNIO | Y35: NUMERO DE ACTIVIDADES SIN EJECUTAR JULIO | AA35: NUMERO DE ACTIVIDADES SIN EJECUTAR AGOSTO | AC35: NUMERO DE ACTIVIDADES SIN EJECUTAR SEPTIEMBRE | AE35: NUMERO DE ACTIVIDADES SIN EJECUTAR OCTUBRE | AG35: NUMERO DE ACTIVIDADES SIN EJECUTAR NOVIEMBRE | AI35: NUMERO DE ACTIVIDADES SIN EJECUTAR DICIEMBRE
M36: PORCENTAJE EJECUTADO ENERO | N36: =N34/(SUM(N34,N35)) ->  | O36: FEBRERO | P36: =P34/(SUM(P34,P35)) ->  | Q36: MARZO | R36: =R34/(SUM(R34,R35)) ->  | S36: ABRIL | T36: =T34/(SUM(T34,T35)) ->  | U36: MAYO | V36: =V34/(SUM(V34,V35)) ->  | W36: JUNIO | X36: =X34/(SUM(X34,X35)) ->  | Y36: JULIO | Z36: =Z34/(SUM(Z34,Z35)) ->  | AA36: AGOSTO | AB36: =AB34/(SUM(AB34,AB35)) ->  | AC36: SEPTIEMBRE | AD36: =AD34/(SUM(AD34,AD35)) ->  | AE36: OCTUBRE | AF36: =AF34/(SUM(AF34,AF35)) ->  | AG36: NOVIEMBRE | AH36: =AH34/(SUM(AH34,AH35)) ->  | AI36: DICIEMBRE | AJ36: =AJ34/(SUM(AJ34,AJ35)) -> 
M37: PORCENTAJE NO EJECUTADO ENERO | N37: =N35/(SUM(N34,N35)) ->  | O37: PORCENTAJE NO EJECUTADO FEBRERO | P37: =P35/(SUM(P34,P35)) ->  | Q37: PORCENTAJE NO EJECUTADO MARZO | R37: =R35/(SUM(R34,R35)) ->  | S37: PORCENTAJE NO EJECUTADO ABRIL | T37: =T35/(SUM(T34,T35)) ->  | U37: PORCENTAJE NO EJECUTADO MAYO | V37: =V35/(SUM(V34,V35)) ->  | W37: PORCENTAJE NO EJECUTADO JUNIO | X37: =X35/(SUM(X34,X35)) ->  | Y37: PORCENTAJE NO EJECUTADO JULIO | Z37: =Z35/(SUM(Z34,Z35)) ->  | AA37: PORCENTAJE NO EJECUTADO AGOSTO | AB37: =AB35/(SUM(AB34,AB35)) ->  | AC37: PORCENTAJE NO EJECUTADO SEPTIEMBRE | AD37: =AD35/(SUM(AD34,AD35)) ->  | AE37: PORCENTAJE NO EJECUTADO OCTUBRE | AF37: =AF35/(SUM(AF34,AF35)) ->  | AG37: PORCENTAJE NO EJECUTADO NOVIEMBRE | AH37: =AH35/(SUM(AH34,AH35)) ->  | AI37: PORCENTAJE NO EJECUTADO DICIEMBRE | AJ37: =AJ35/(SUM(AJ34,AJ35)) -> 
M38: PORCENTAJE EJECUTADO RESPECTO AL AÑO | N38: =(N33*100)/101 -> 6.930693069 | O38: PORCENTAJE RESPECTO AL AÑO | P38: =(P33*100)/101 -> 7.920792079 | Q38: PORCENTAJE RESPECTO AL AÑO | R38: =(R33*100)/101 -> 7.920792079 | S38: PORCENTAJE RESPECTO AL AÑO | T38: =(T33*100)/101 -> 8.910891089 | U38: PORCENTAJE RESPECTO AL AÑO | V38: =(V33*100)/101 -> 6.930693069 | W38: PORCENTAJE RESPECTO AL AÑO | X38: =(X33*100)/101 -> 11.88118812 | Y38: PORCENTAJE RESPECTO AL AÑO | Z38: =(Z33*100)/101 -> 6.930693069 | AA38: PORCENTAJE RESPECTO AL AÑO | AB38: =(AB33*100)/101 -> 7.920792079 | AC38: PORCENTAJE RESPECTO AL AÑO | AD38: =(AD33*100)/101 -> 6.930693069 | AE38: PORCENTAJE RESPECTO AL AÑO | AF38: =(AF33*100)/101 -> 8.910891089 | AG38: PORCENTAJE RESPECTO AL AÑO | AH38: =(AH33*100)/101 -> 6.930693069 | AI38: PORCENTAJE RESPECTO AL AÑO | AJ38: =(AJ33*100)/101 -> 11.88118812
Q39: PORCENTAJE RESPECTO AL TRIMESTRE | R39: =N38+P38+R38 -> 22.77227723 | W39: PORCENTAJE RESPECTO AL TRIMESTRE | X39: =T38+V38+X38 -> 27.72277228 | AC39: PORCENTAJE RESPECTO AL TRIMESTRE | AD39: =Z38+AB38+AD38 -> 21.78217822 | AI39: PORCENTAJE RESPECTO AL TRIMESTRE | AJ39: =AF38+AH38+AJ38 -> 27.72277228
Q40: PORCENTAJE ACUMULADO RESPECTO AL TRIMESTRE | R40: =+R39 -> 22.77227723 | W40: PORCENTAJE ACUMULADO RESPECTO AL TRIMESTRE | X40: =X39+R40 -> 50.4950495 | AC40: PORCENTAJE ACUMULADO RESPECTO AL TRIMESTRE | AD40: =AD39+X40 -> 72.27722772 | AI40: PORCENTAJE ACUMULADO RESPECTO AL TRIMESTRE | AJ40: =AJ39+AD40 -> 100
